Workbook

Sheet Zestawienie
X54: RABAT
X55: 0.3
A57: URZĄDZENIE | D57: TYP | E57: KOD | F57: OPIS | W57: CENA EURO | X57: KONCOWA EURO
B58: Type | C58: Size | D58: Model | E58: ItemCode | F58: Description | G58: Remark | H58: RPM | I58: Voltage | J58: Size2 | K58: Power | L58: Torque | M58: Encoder | N58: Brake | O58: ServoDriver | W58: =VLOOKUP(E60,TabelaCen!A3:C989,3,FALSE) -> 
A59: SERWOSILNIK | B59: APMC-FAL | C59: 40 AL Flange | D59: APMC-FALR5AYN | E59: 4716142700 | F59: =CONCATENATE("Serwosilnik",", ",B59,", ",J59,", ",L59,", ",H59,"obr/min, ",K59,", ",N59,", ",M59,", ",D59,", ",E59) -> Serwosilnik, APMC-FAL, 40mm, 0.16Nm, 3000obr/min, 50w, bez hamulca, Serial Enc. 17Bit MT, APMC-FALR5AYN, 4716142700 | G59: □40, 50w, 0.16Nm, Serial Enc.17 Bit MT, [L7CA001U] | H59: 3000 | I59: 200 | J59: 40mm | K59: 50w | L59: 0.16Nm | M59: Serial Enc. 17Bit MT | N59: bez hamulca | O59: [L7CA001U] | W59: =VLOOKUP(E59,TabelaCen!$B$2:$C$988,2,FALSE) -> 272.95 | X59: =W59-(W59*$X$55) -> 191.065
A60: SERWOSILNIK | B60: APMC-FAL | C60: 40 AL Flange | D60: APMC-FAL01AYN | E60: 4716142800 | F60: Serwosilnik, APMC-FAL, 40mm, 0.32Nm, 3000obr/min, 100w, bez hamulca, Serial Enc. 17Bit MT, APMC-FAL01AYN, 4716142800 | G60: □40, 100w, 0.32Nm, Serial Enc.17 Bit MT, [L7CA001U] | H60: 3000 | I60: 200 | J60: 40mm | K60: 100w | L60: 0.32Nm | M60: Serial Enc. 17Bit MT | N60: bez hamulca | O60: [L7CA001U] | W60: =VLOOKUP(E60,TabelaCen!$B$2:$C$988,2,FALSE) -> 294.58 | X60: 206.206
A61: SERWOSILNIK | B61: APMC-FAL | C61: 40 AL Flange | D61: APMC-FAL015AYN | E61: 4716142900 | F61: Serwosilnik, APMC-FAL, 40mm, 0.48Nm, 3000obr/min, 150w, bez hamulca, Serial Enc. 17Bit MT, APMC-FAL015AYN, 4716142900 | G61: □40, 150w, 0.48Nm, Serial Enc.17 Bit MT, [L7CA002U] | H61: 3000 | I61: 200 | J61: 40mm | K61: 150w | L61: 0.48Nm | M61: Serial Enc. 17Bit MT | N61: bez hamulca | O61: [L7CA002U] | W61: =VLOOKUP(E61,TabelaCen!$B$2:$C$988,2,FALSE) -> 326.51 | X61: 228.557
A62: SERWOSILNIK | B62: APMC-FAL | C62: 40 AL Flange | D62: APMC-FALR5AYN2 | E62: 4716143000 | F62: Serwosilnik, APMC-FAL, 40mm, 0.16Nm, 3000obr/min, 50w, z hamulcem, Serial Enc. 17Bit MT, APMC-FALR5AYN2, 4716143000 | G62: □40, 50w, 0.16Nm, Serial Enc.17 Bit MT, Brake, [L7CA001U] | H62: 3000 | I62: 200 | J62: 40mm | K62: 50w | L62: 0.16Nm | M62: Serial Enc. 17Bit MT | N62: z hamulcem | O62: [L7CA001U] | W62: =VLOOKUP(E62,TabelaCen!$B$2:$C$988,2,FALSE) -> 415.09 | X62: 290.563
A63: SERWOSILNIK | B63: APMC-FAL | C63: 40 AL Flange | D63: APMC-FAL01AYN2 | E63: 4716143100 | F63: Serwosilnik, APMC-FAL, 40mm, 0.32Nm, 3000obr/min, 100w, z hamulcem, Serial Enc. 17Bit MT, APMC-FAL01AYN2, 4716143100 | G63: □40, 100w, 0.32Nm, Serial Enc.17 Bit MT, Brake, [L7CA001U] | H63: 3000 | I63: 200 | J63: 40mm | K63: 100w | L63: 0.32Nm | M63: Serial Enc. 17Bit MT | N63: z hamulcem | O63: [L7CA001U] | W63: =VLOOKUP(E63,TabelaCen!$B$2:$C$988,2,FALSE) -> 437.75 | X63: 306.425
A64: SERWOSILNIK | B64: APMC-FAL | C64: 40 AL Flange | D64: APMC-FALR5AM8N | E64: 4716097400 | F64: Serwosilnik, APMC-FAL, 40mm, 0.16Nm, 3000obr/min, 50w, bez hamulca, Serial Enc. 18Bit MT, APMC-FALR5AM8N, 4716097400 | G64: □40, 50w, 0.16Nm, Serial Enc.18 Bit MT, [L7□A001U] | H64: 3000 | I64: 200 | J64: 40mm | K64: 50w | L64: 0.16Nm | M64: Serial Enc. 18Bit MT | N64: bez hamulca | O64: [L7□A001U] | W64: =VLOOKUP(E64,TabelaCen!$B$2:$C$988,2,FALSE) -> 347.11 | X64: 242.977
A65: SERWOSILNIK | B65: APMC-FAL | C65: 40 AL Flange | D65: APMC-FAL01AM8N | E65: 4716089800 | F65: Serwosilnik, APMC-FAL, 40mm, 0.32Nm, 3000obr/min, 100w, bez hamulca, Serial Enc. 18Bit MT, APMC-FAL01AM8N, 4716089800 | G65: □40, 100w, 0.32Nm, Serial Enc.18 Bit MT, [L7□A001U] | H65: 3000 | I65: 200 | J65: 40mm | K65: 100w | L65: 0.32Nm | M65: Serial Enc. 18Bit MT | N65: bez hamulca | O65: [L7□A001U] | W65: =VLOOKUP(E65,TabelaCen!$B$2:$C$988,2,FALSE) -> 356.38 | X65: 249.466
A66: SERWOSILNIK | B66: APMC-FAL | C66: 40 AL Flange | D66: APMC-FAL015AM8N | E66: 4716097500 | F66: Serwosilnik, APMC-FAL, 40mm, 0.48Nm, 3000obr/min, 150w, bez hamulca, Serial Enc. 18Bit MT, APMC-FAL015AM8N, 4716097500 | G66: □40, 150w, 0.48Nm, Serial Enc.18 Bit MT, [L7□A004U] | H66: 3000 | I66: 200 | J66: 40mm | K66: 150w | L66: 0.48Nm | M66: Serial Enc. 18Bit MT | N66: bez hamulca | O66: [L7□A004U] | W66: =VLOOKUP(E66,TabelaCen!$B$2:$C$988,2,FALSE) -> 387.28 | X66: 271.096
A67: SERWOSILNIK | B67: APMC-FAL | C67: 40 AL Flange | D67: APMC-FALR5AM8N2 | E67: 4716103200 | F67: Serwosilnik, APMC-FAL, 40mm, 0.16Nm, 3000obr/min, 50w, z hamulcem, Serial Enc. 18Bit MT, APMC-FALR5AM8N2, 4716103200 | G67: □40, 50w, 0.16Nm, Serial Enc.18 Bit MT, Brake, [L7□A001U] | H67: 3000 | I67: 200 | J67: 40mm | K67: 50w | L67: 0.16Nm | M67: Serial Enc. 18Bit MT | N67: z hamulcem | O67: [L7□A001U] | W67: =VLOOKUP(E67,TabelaCen!$B$2:$C$988,2,FALSE) -> 543.84 | X67: 380.688
A68: SERWOSILNIK | B68: APMC-FAL | C68: 40 AL Flange | D68: APMC-FAL01AM8N2 | E68: 4716103300 | F68: Serwosilnik, APMC-FAL, 40mm, 0.32Nm, 3000obr/min, 100w, z hamulcem, Serial Enc. 18Bit MT, APMC-FAL01AM8N2, 4716103300 | G68: □40, 100w, 0.32Nm, Serial Enc.18 Bit MT, Brake, [L7□A001U] | H68: 3000 | I68: 200 | J68: 40mm | K68: 100w | L68: 0.32Nm | M68: Serial Enc. 18Bit MT | N68: z hamulcem | O68: [L7□A001U] | W68: =VLOOKUP(E68,TabelaCen!$B$2:$C$988,2,FALSE) -> 525.3 | X68: 367.71
A69: SERWOSILNIK | B69: APMC-FAL | C69: 40 AL Flange | D69: APMC-FAL015AM8K2 | E69: 4716081500 | F69: Serwosilnik, APMC-FAL, 40mm, 0.48Nm, 3000obr/min, 150w, z hamulcem, Serial Enc. 18Bit MT, APMC-FAL015AM8K2, 4716081500 | G69: □40, 150w, 0.48Nm, Serial Enc.18 Bit MT, Brake, [L7□A004U] | H69: 3000 | I69: 200 | J69: 40mm | K69: 150w | L69: 0.48Nm | M69: Serial Enc. 18Bit MT | N69: z hamulcem | O69: [L7□A004U] | W69: =VLOOKUP(E69,TabelaCen!$B$2:$C$988,2,FALSE) -> 
A70: SERWOSILNIK | B70: APMC-FBL | C70: 60 BL Flange | D70: APMC-FBL01AYK | E70: 4716143700 | F70: Serwosilnik, APMC-FBL, 60mm, 0.32Nm, 3000obr/min, 100w, bez hamulca, Serial Enc. 17Bit MT, APMC-FBL01AYK, 4716143700 | G70: □60, 100w, 0.32Nm, Serial Enc.17 Bit MT, [L7CA001U] | H70: 3000 | I70: 200 | J70: 60mm | K70: 100w | L70: 0.32Nm | M70: Serial Enc. 17Bit MT | N70: bez hamulca | O70: [L7CA001U] | W70: =VLOOKUP(E70,TabelaCen!$B$2:$C$988,2,FALSE) -> 258.53 | X70: 180.971
A71: SERWOSILNIK | B71: APMC-FBL | C71: 60 BL Flange | D71: APMC-FBL02AYK | E71: 4716143800 | F71: Serwosilnik, APMC-FBL, 60mm, 0.64Nm, 3000obr/min, 200w, bez hamulca, Serial Enc. 17Bit MT, APMC-FBL02AYK, 4716143800 | G71: □60, 200w, 0.64Nm, Serial Enc.17 Bit MT, [L7CA002U] | H71: 3000 | I71: 200 | J71: 60mm | K71: 200w | L71: 0.64Nm | M71: Serial Enc. 17Bit MT | N71: bez hamulca | O71: [L7CA002U] | W71: =VLOOKUP(E71,TabelaCen!$B$2:$C$988,2,FALSE) -> 282.22 | X71: 197.554
A72: SERWOSILNIK | B72: APMC-FBL | C72: 60 BL Flange | D72: APMC-FBL04AYK | E72: 4716143900 | F72: Serwosilnik, APMC-FBL, 60mm, 1.27Nm, 3000obr/min, 400w, bez hamulca, Serial Enc. 17Bit MT, APMC-FBL04AYK, 4716143900 | G72: □60, 400w, 1.27Nm, Serial Enc.17 Bit MT, [L7CA004U] | H72: 3000 | I72: 200 | J72: 60mm | K72: 400w | L72: 1.27Nm | M72: Serial Enc. 17Bit MT | N72: bez hamulca | O72: [L7CA004U] | W72: =VLOOKUP(E72,TabelaCen!$B$2:$C$988,2,FALSE) -> 295.61 | X72: 206.927
A73: SERWOSILNIK | B73: APMC-FBL | C73: 60 BL Flange | D73: APMC-FBL01AYK2 | E73: 4716144300 | F73: Serwosilnik, APMC-FBL, 60mm, 0.32Nm, 3000obr/min, 100w, z hamulcem, Serial Enc. 17Bit MT, APMC-FBL01AYK2, 4716144300 | G73: □60, 100w, 0.32Nm, Serial Enc.17 Bit MT, Brake, [L7CA001U] | H73: 3000 | I73: 200 | J73: 60mm | K73: 100w | L73: 0.32Nm | M73: Serial Enc. 17Bit MT | N73: z hamulcem | O73: [L7CA001U] | W73: =VLOOKUP(E73,TabelaCen!$B$2:$C$988,2,FALSE) -> 473.8 | X73: 331.66
A74: SERWOSILNIK | B74: APMC-FBL | C74: 60 BL Flange | D74: APMC-FBL02AYK2 | E74: 4716144400 | F74: Serwosilnik, APMC-FBL, 60mm, 0.64Nm, 3000obr/min, 200w, z hamulcem, Serial Enc. 17Bit MT, APMC-FBL02AYK2, 4716144400 | G74: □60, 200w, 0.64Nm, Serial Enc.17 Bit MT, Brake, [L7CA002U] | H74: 3000 | I74: 200 | J74: 60mm | K74: 200w | L74: 0.64Nm | M74: Serial Enc. 17Bit MT | N74: z hamulcem | O74: [L7CA002U] | W74: =VLOOKUP(E74,TabelaCen!$B$2:$C$988,2,FALSE) -> 496.46 | X74: 347.522
A75: SERWOSILNIK | B75: APMC-FBL | C75: 60 BL Flange | D75: APMC-FBL04AYK2 | E75: 4716144500 | F75: Serwosilnik, APMC-FBL, 60mm, 1.27Nm, 3000obr/min, 400w, z hamulcem, Serial Enc. 17Bit MT, APMC-FBL04AYK2, 4716144500 | G75: □60, 400w, 1.27Nm, Serial Enc.17 Bit MT, Brake, [L7CA004U] | H75: 3000 | I75: 200 | J75: 60mm | K75: 400w | L75: 1.27Nm | M75: Serial Enc. 17Bit MT | N75: z hamulcem | O75: [L7CA004U] | W75: =VLOOKUP(E75,TabelaCen!$B$2:$C$988,2,FALSE) -> 509.85 | X75: 356.895
A76: SERWOSILNIK | B76: APMC-FBL | C76: 60 BL Flange | D76: APMC-FBL01AMK | E76: 4716080000 | F76: Serwosilnik, APMC-FBL, 60mm, 0.32Nm, 3000obr/min, 100w, bez hamulca, Serial Enc. 19Bit MT, APMC-FBL01AMK, 4716080000 | G76: □60, 100w, 0.32Nm, Serial Enc.19 Bit MT, [L7□A001U] | H76: 3000 | I76: 200 | J76: 60mm | K76: 100w | L76: 0.32Nm | M76: Serial Enc. 19Bit MT | N76: bez hamulca | O76: [L7□A001U] | W76: =VLOOKUP(E76,TabelaCen!$B$2:$C$988,2,FALSE) -> 310.03 | X76: 217.021
A77: SERWOSILNIK | B77: APMC-FBL | C77: 60 BL Flange | D77: APMC-FBL02AMK | E77: 4716080100 | F77: Serwosilnik, APMC-FBL, 60mm, 0.64Nm, 3000obr/min, 200w, bez hamulca, Serial Enc. 19Bit MT, APMC-FBL02AMK, 4716080100 | G77: □60, 200w, 0.64Nm, Serial Enc.19 Bit MT, [L7□A002U] | H77: 3000 | I77: 200 | J77: 60mm | K77: 200w | L77: 0.64Nm | M77: Serial Enc. 19Bit MT | N77: bez hamulca | O77: [L7□A002U] | W77: =VLOOKUP(E77,TabelaCen!$B$2:$C$988,2,FALSE) -> 332.69 | X77: 232.883
A78: SERWOSILNIK | B78: APMC-FBL | C78: 60 BL Flange | D78: APMC-FBL04AMK | E78: 4716080200 | F78: Serwosilnik, APMC-FBL, 60mm, 1.27Nm, 3000obr/min, 400w, bez hamulca, Serial Enc. 19Bit MT, APMC-FBL04AMK, 4716080200 | G78: □60, 400w, 1.27Nm, Serial Enc.19 Bit MT, [L7□A004U] | H78: 3000 | I78: 200 | J78: 60mm | K78: 400w | L78: 1.27Nm | M78: Serial Enc. 19Bit MT | N78: bez hamulca | O78: [L7□A004U] | W78: =VLOOKUP(E78,TabelaCen!$B$2:$C$988,2,FALSE) -> 346.08 | X78: 242.256
A79: SERWOSILNIK | B79: APMC-FBL | C79: 60 BL Flange | D79: APMC-FBL01AMK2 | E79: 4716081600 | F79: Serwosilnik, APMC-FBL, 60mm, 0.32Nm, 3000obr/min, 100w, z hamulcem, Serial Enc. 19Bit MT, APMC-FBL01AMK2, 4716081600 | G79: □60, 100w, 0.32Nm, Serial Enc.19 Bit MT, Brake, [L7□A001U] | H79: 3000 | I79: 200 | J79: 60mm | K79: 100w | L79: 0.32Nm | M79: Serial Enc. 19Bit MT | N79: z hamulcem | O79: [L7□A001U] | W79: =VLOOKUP(E79,TabelaCen!$B$2:$C$988,2,FALSE) -> 531.48 | X79: 372.036
A80: SERWOSILNIK | B80: APMC-FBL | C80: 60 BL Flange | D80: APMC-FBL02AMK2 | E80: 4716081700 | F80: Serwosilnik, APMC-FBL, 60mm, 0.64Nm, 3000obr/min, 200w, z hamulcem, Serial Enc. 19Bit MT, APMC-FBL02AMK2, 4716081700 | G80: □60, 200w, 0.64Nm, Serial Enc.19 Bit MT, Brake, [L7□A002U] | H80: 3000 | I80: 200 | J80: 60mm | K80: 200w | L80: 0.64Nm | M80: Serial Enc. 19Bit MT | N80: z hamulcem | O80: [L7□A002U] | W80: =VLOOKUP(E80,TabelaCen!$B$2:$C$988,2,FALSE) -> 557.23 | X80: 390.061
A81: SERWOSILNIK | B81: APMC-FBL | C81: 60 BL Flange | D81: APMC-FBL04AMK2 | E81: 4716081800 | F81: Serwosilnik, APMC-FBL, 60mm, 1.27Nm, 3000obr/min, 400w, z hamulcem, Serial Enc. 19Bit MT, APMC-FBL04AMK2, 4716081800 | G81: □60, 400w, 1.27Nm, Serial Enc.19 Bit MT, Brake, [L7□A004U] | H81: 3000 | I81: 200 | J81: 60mm | K81: 400w | L81: 1.27Nm | M81: Serial Enc. 19Bit MT | N81: z hamulcem | O81: [L7□A004U] | W81: =VLOOKUP(E81,TabelaCen!$B$2:$C$988,2,FALSE) -> 567.53 | X81: 397.271
A82: SERWOSILNIK | B82: APMC-FCL | C82: 80 CL Flange | D82: APMC-FCL04AYK | E82: 4716146100 | F82: Serwosilnik, APMC-FCL, 80mm, 1.27Nm, 3000obr/min, 400w, bez hamulca, Serial Enc. 17Bit MT, APMC-FCL04AYK, 4716146100 | G82: □80, 400w, 1.27Nm, Serial Enc.17 Bit MT, [L7CA004U] | H82: 3000 | I82: 200 | J82: 80mm | K82: 400w | L82: 1.27Nm | M82: Serial Enc. 17Bit MT | N82: bez hamulca | O82: [L7CA004U] | W82: =VLOOKUP(E82,TabelaCen!$B$2:$C$988,2,FALSE) -> 295.61 | X82: 206.927
A83: SERWOSILNIK | B83: APMC-FCL | C83: 80 CL Flange | D83: APMC-FCL06AYK | E83: 4716146200 | F83: Serwosilnik, APMC-FCL, 80mm, 1.91Nm, 3000obr/min, 600w, bez hamulca, Serial Enc. 17Bit MT, APMC-FCL06AYK, 4716146200 | G83: □80, 600w, 1.91Nm, Serial Enc.17 Bit MT, [L7CA008U] | H83: 3000 | I83: 200 | J83: 80mm | K83: 600w | L83: 1.91Nm | M83: Serial Enc. 17Bit MT | N83: bez hamulca | O83: [L7CA008U] | W83: =VLOOKUP(E83,TabelaCen!$B$2:$C$988,2,FALSE) -> 339.9 | X83: 237.93
A84: SERWOSILNIK | B84: APMC-FCL | C84: 80 CL Flange | D84: APMC-FCL08AYK | E84: 4716146300 | F84: Serwosilnik, APMC-FCL, 80mm, 2.39Nm, 3000obr/min, 750w, bez hamulca, Serial Enc. 17Bit MT, APMC-FCL08AYK, 4716146300 | G84: □80, 750w, 2.39Nm, Serial Enc.17 Bit MT, [L7CA008U] | H84: 3000 | I84: 200 | J84: 80mm | K84: 750w | L84: 2.39Nm | M84: Serial Enc. 17Bit MT | N84: bez hamulca | O84: [L7CA008U] | W84: =VLOOKUP(E84,TabelaCen!$B$2:$C$988,2,FALSE) -> 382.13 | X84: 267.491
A85: SERWOSILNIK | B85: APMC-FCL | C85: 80 CL Flange | D85: APMC-FCL10AYK | E85: 4716146400 | F85: Serwosilnik, APMC-FCL, 80mm, 3.18Nm, 3000obr/min, 1Kw, bez hamulca, Serial Enc. 17Bit MT, APMC-FCL10AYK, 4716146400 | G85: □80, 1Kw, 3.18Nm, Serial Enc.17 Bit MT, [L7CA010U] | H85: 3000 | I85: 200 | J85: 80mm | K85: 1Kw | L85: 3.18Nm | M85: Serial Enc. 17Bit MT | N85: bez hamulca | O85: [L7CA010U] | W85: =VLOOKUP(E85,TabelaCen!$B$2:$C$988,2,FALSE) -> 428.48 | X85: 299.936
A86: SERWOSILNIK | B86: APMC-FCL | C86: 80 CL Flange | D86: APMC-FCL04AYK2 | E86: 4716147700 | F86: Serwosilnik, APMC-FCL, 80mm, 1.27Nm, 3000obr/min, 400w, z hamulcem, Serial Enc. 17Bit MT, APMC-FCL04AYK2, 4716147700 | G86: □80, 400w, 1.27Nm, Serial Enc.17 Bit MT, Brake, [L7CA004U] | H86: 3000 | I86: 200 | J86: 80mm | K86: 400w | L86: 1.27Nm | M86: Serial Enc. 17Bit MT | N86: z hamulcem | O86: [L7CA004U] | W86: =VLOOKUP(E86,TabelaCen!$B$2:$C$988,2,FALSE) -> 523.24 | X86: 366.268
A87: SERWOSILNIK | B87: APMC-FCL | C87: 80 CL Flange | D87: APMC-FCL06AYK2 | E87: 4716147800 | F87: Serwosilnik, APMC-FCL, 80mm, 1.91Nm, 3000obr/min, 600w, z hamulcem, Serial Enc. 17Bit MT, APMC-FCL06AYK2, 4716147800 | G87: □80, 600w, 1.91Nm, Serial Enc.17 Bit MT, Brake, [L7CA008U] | H87: 3000 | I87: 200 | J87: 80mm | K87: 600w | L87: 1.91Nm | M87: Serial Enc. 17Bit MT | N87: z hamulcem | O87: [L7CA008U] | W87: =VLOOKUP(E87,TabelaCen!$B$2:$C$988,2,FALSE) -> 562.38 | X87: 393.666
A88: SERWOSILNIK | B88: APMC-FCL | C88: 80 CL Flange | D88: APMC-FCL08AYK2 | E88: 4716147900 | F88: Serwosilnik, APMC-FCL, 80mm, 2.39Nm, 3000obr/min, 750w, z hamulcem, Serial Enc. 17Bit MT, APMC-FCL08AYK2, 4716147900 | G88: □80, 750w, 2.39Nm, Serial Enc.17 Bit MT, Brake, [L7CA008U] | H88: 3000 | I88: 200 | J88: 80mm | K88: 750w | L88: 2.39Nm | M88: Serial Enc. 17Bit MT | N88: z hamulcem | O88: [L7CA008U] | W88: =VLOOKUP(E88,TabelaCen!$B$2:$C$988,2,FALSE) -> 607.7 | X88: 425.39
A89: SERWOSILNIK | B89: APMC-FCL | C89: 80 CL Flange | D89: APMC-FCL10AYK2 | E89: 4716148000 | F89: Serwosilnik, APMC-FCL, 80mm, 3.18Nm, 3000obr/min, 1Kw, z hamulcem, Serial Enc. 17Bit MT, APMC-FCL10AYK2, 4716148000 | G89: □80, 1Kw, 3.18Nm, Serial Enc.17 Bit MT, Brake, [L7CA010U] | H89: 3000 | I89: 200 | J89: 80mm | K89: 1Kw | L89: 3.18Nm | M89: Serial Enc. 17Bit MT | N89: z hamulcem | O89: [L7CA010U] | W89: =VLOOKUP(E89,TabelaCen!$B$2:$C$988,2,FALSE) -> 650.96 | X89: 455.672
A90: SERWOSILNIK | B90: APMC-FCL | C90: 80 CL Flange | D90: APMC -FCL03DYK | E90: 4716146500 | F90: Serwosilnik, APMC-FCL, 80mm, 1.43Nm, 2000obr/min, 300w, bez hamulca, Serial Enc. 17Bit MT, APMC -FCL03DYK, 4716146500 | G90: □80, 300w, 1.43Nm, Serial Enc.17 Bit MT, [L7CA004U] | H90: 2000 | I90: 200 | J90: 80mm | K90: 300w | L90: 1.43Nm | M90: Serial Enc. 17Bit MT | N90: bez hamulca | O90: [L7CA004U] | W90: =VLOOKUP(E90,TabelaCen!$B$2:$C$988,2,FALSE) -> 301.79 | X90: 211.253
A91: SERWOSILNIK | B91: APMC-FCL | C91: 80 CL Flange | D91: APMC -FCL05DYK | E91: 4716146600 | F91: Serwosilnik, APMC-FCL, 80mm, 2.15Nm, 2000obr/min, 450w, bez hamulca, Serial Enc. 17Bit MT, APMC -FCL05DYK, 4716146600 | G91: □80, 450w, 2.15Nm, Serial Enc.17 Bit MT, [L7CA008U] | H91: 2000 | I91: 200 | J91: 80mm | K91: 450w | L91: 2.15Nm | M91: Serial Enc. 17Bit MT | N91: bez hamulca | O91: [L7CA008U] | W91: =VLOOKUP(E91,TabelaCen!$B$2:$C$988,2,FALSE) -> 346.08 | X91: 242.256
A92: SERWOSILNIK | B92: APMC-FCL | C92: 80 CL Flange | D92: APMC -FCL06DYK | E92: 4716146700 | F92: Serwosilnik, APMC-FCL, 80mm, 2.63Nm, 2000obr/min, 550w, bez hamulca, Serial Enc. 17Bit MT, APMC -FCL06DYK, 4716146700 | G92: □80, 550w, 2.63Nm, Serial Enc.17 Bit MT, [L7CA008U] | H92: 2000 | I92: 200 | J92: 80mm | K92: 550w | L92: 2.63Nm | M92: Serial Enc. 17Bit MT | N92: bez hamulca | O92: [L7CA008U] | W92: =VLOOKUP(E92,TabelaCen!$B$2:$C$988,2,FALSE) -> 384.19 | X92: 268.933
A93: SERWOSILNIK | B93: APMC-FCL | C93: 80 CL Flange | D93: APMC -FCL07DYK | E93: 4716146800 | F93: Serwosilnik, APMC-FCL, 80mm, 3.10Nm, 2000obr/min, 650w, bez hamulca, Serial Enc. 17Bit MT, APMC -FCL07DYK, 4716146800 | G93: □80, 650w, 3.1Nm, Serial Enc.17 Bit MT, [L7CA008U] | H93: 2000 | I93: 200 | J93: 80mm | K93: 650w | L93: 3.10Nm | M93: Serial Enc. 17Bit MT | N93: bez hamulca | O93: [L7CA008U] | W93: =VLOOKUP(E93,TabelaCen!$B$2:$C$988,2,FALSE) -> 429.51 | X93: 300.657
A94: SERWOSILNIK | B94: APMC-FCL | C94: 80 CL Flange | D94: APMC -FCL03DYK2 | E94: 4716142200 | F94: Serwosilnik, APMC-FCL, 80mm, 1.43Nm, 2000obr/min, 300w, z hamulcem, Serial Enc. 17Bit MT, APMC -FCL03DYK2, 4716142200 | G94: □80, 300w, 1.43Nm, Serial Enc.17 Bit MT, Brake, [L7CA004U] | H94: 2000 | I94: 200 | J94: 80mm | K94: 300w | L94: 1.43Nm | M94: Serial Enc. 17Bit MT | N94: z hamulcem | O94: [L7CA004U] | W94: =VLOOKUP(E94,TabelaCen!$B$2:$C$988,2,FALSE) -> 529.42 | X94: 370.594
A95: SERWOSILNIK | B95: APMC-FCL | C95: 80 CL Flange | D95: APMC -FCL05DYK2 | E95: 4716142300 | F95: Serwosilnik, APMC-FCL, 80mm, 2.15Nm, 2000obr/min, 450w, z hamulcem, Serial Enc. 17Bit MT, APMC -FCL05DYK2, 4716142300 | G95: □80, 450w, 2.15Nm, Serial Enc.17 Bit MT, Brake, [L7CA008U] | H95: 2000 | I95: 200 | J95: 80mm | K95: 450w | L95: 2.15Nm | M95: Serial Enc. 17Bit MT | N95: z hamulcem | O95: [L7CA008U] | W95: =VLOOKUP(E95,TabelaCen!$B$2:$C$988,2,FALSE) -> 568.56 | X95: 397.992
A96: SERWOSILNIK | B96: APMC-FCL | C96: 80 CL Flange | D96: APMC -FCL06DYK2 | E96: 4716142400 | F96: Serwosilnik, APMC-FCL, 80mm, 2.63Nm, 2000obr/min, 550w, z hamulcem, Serial Enc. 17Bit MT, APMC -FCL06DYK2, 4716142400 | G96: □80, 550w, 2.63Nm, Serial Enc.17 Bit MT, Brake, [L7CA008U] | H96: 2000 | I96: 200 | J96: 80mm | K96: 550w | L96: 2.63Nm | M96: Serial Enc. 17Bit MT | N96: z hamulcem | O96: [L7CA008U] | W96: =VLOOKUP(E96,TabelaCen!$B$2:$C$988,2,FALSE) -> 605.64 | X96: 423.948
A97: SERWOSILNIK | B97: APMC-FCL | C97: 80 CL Flange | D97: APMC -FCL07DYK2 | E97: 4716142500 | F97: Serwosilnik, APMC-FCL, 80mm, 3.10Nm, 2000obr/min, 650w, z hamulcem, Serial Enc. 17Bit MT, APMC -FCL07DYK2, 4716142500 | G97: □80, 650w, 3.1Nm, Serial Enc.17 Bit MT, Brake, [L7CA008U] | H97: 2000 | I97: 200 | J97: 80mm | K97: 650w | L97: 3.10Nm | M97: Serial Enc. 17Bit MT | N97: z hamulcem | O97: [L7CA008U] | W97: =VLOOKUP(E97,TabelaCen!$B$2:$C$988,2,FALSE) -> 648.9 | X97: 454.23
A98: SERWOSILNIK | B98: APMC-FCL | C98: 80 CL Flange | D98: APMC-FCL04AMK | E98: 4716080300 | F98: Serwosilnik, APMC-FCL, 80mm, 1.27Nm, 3000obr/min, 400w, bez hamulca, Serial Enc. 19Bit MT, APMC-FCL04AMK, 4716080300 | G98: □80, 400w, 1.27Nm, Serial Enc.19 Bit MT, [L7□A004U] | H98: 3000 | I98: 200 | J98: 80mm | K98: 400w | L98: 1.27Nm | M98: Serial Enc. 19Bit MT | N98: bez hamulca | O98: [L7□A004U] | W98: =VLOOKUP(E98,TabelaCen!$B$2:$C$988,2,FALSE) -> 348.14 | X98: 243.698
A99: SERWOSILNIK | B99: APMC-FCL | C99: 80 CL Flange | D99: APMC-FCL06AMK | E99: 4716080400 | F99: Serwosilnik, APMC-FCL, 80mm, 1.91Nm, 3000obr/min, 600w, bez hamulca, Serial Enc. 19Bit MT, APMC-FCL06AMK, 4716080400 | G99: □80, 600w, 1.91Nm, Serial Enc.19 Bit MT, [L7□A008U] | H99: 3000 | I99: 200 | J99: 80mm | K99: 600w | L99: 1.91Nm | M99: Serial Enc. 19Bit MT | N99: bez hamulca | O99: [L7□A008U] | W99: =VLOOKUP(E99,TabelaCen!$B$2:$C$988,2,FALSE) -> 383.16 | X99: 268.212
A100: SERWOSILNIK | B100: APMC-FCL | C100: 80 CL Flange | D100: APMC-FCL08AMK | E100: 4716080500 | F100: Serwosilnik, APMC-FCL, 80mm, 2.39Nm, 3000obr/min, 750w, bez hamulca, Serial Enc. 19Bit MT, APMC-FCL08AMK, 4716080500 | G100: □80, 750w, 2.39Nm, Serial Enc.19 Bit MT, [L7□A008U] | H100: 3000 | I100: 200 | J100: 80mm | K100: 750w | L100: 2.39Nm | M100: Serial Enc. 19Bit MT | N100: bez hamulca | O100: [L7□A008U] | W100: =VLOOKUP(E100,TabelaCen!$B$2:$C$988,2,FALSE) -> 429.51 | X100: =W100-(W100*$X$55) -> 300.657
A101: SERWOSILNIK | B101: APMC-FCL | C101: 80 CL Flange | D101: APMC-FCL10AMK | E101: 4716080600 | F101: Serwosilnik, APMC-FCL, 80mm, 3.18Nm, 3000obr/min, 1Kw, bez hamulca, Serial Enc. 19Bit MT, APMC-FCL10AMK, 4716080600 | G101: □80, 1Kw, 3.18Nm, Serial Enc.19 Bit MT, [L7□A010U] | H101: 3000 | I101: 200 | J101: 80mm | K101: 1Kw | L101: 3.18Nm | M101: Serial Enc. 19Bit MT | N101: bez hamulca | O101: [L7□A010U] | W101: =VLOOKUP(E101,TabelaCen!$B$2:$C$988,2,FALSE) -> 470.71 | X101: 329.497
A102: SERWOSILNIK | B102: APMC-FCL | C102: 80 CL Flange | D102: APMC-FCL04AMK2 | E102: 4716081900 | F102: Serwosilnik, APMC-FCL, 80mm, 1.27Nm, 3000obr/min, 400w, z hamulcem, Serial Enc. 19Bit MT, APMC-FCL04AMK2, 4716081900 | G102: □80, 400w, 1.27Nm, Serial Enc.19 Bit MT, Brake, [L7□A004U] | H102: 3000 | I102: 200 | J102: 80mm | K102: 400w | L102: 1.27Nm | M102: Serial Enc. 19Bit MT | N102: z hamulcem | O102: [L7□A004U] | W102: =VLOOKUP(E102,TabelaCen!$B$2:$C$988,2,FALSE) -> 566.5 | X102: 396.55
A103: SERWOSILNIK | B103: APMC-FCL | C103: 80 CL Flange | D103: APMC-FCL06AMK2 | E103: 4716082000 | F103: Serwosilnik, APMC-FCL, 80mm, 1.91Nm, 3000obr/min, 600w, z hamulcem, Serial Enc. 19Bit MT, APMC-FCL06AMK2, 4716082000 | G103: □80, 600w, 1.91Nm, Serial Enc.19 Bit MT, Brake, [L7□A008U] | H103: 3000 | I103: 200 | J103: 80mm | K103: 600w | L103: 1.91Nm | M103: Serial Enc. 19Bit MT | N103: z hamulcem | O103: [L7□A008U] | W103: =VLOOKUP(E103,TabelaCen!$B$2:$C$988,2,FALSE) -> 607.7 | X103: 425.39
A104: SERWOSILNIK | B104: APMC-FCL | C104: 80 CL Flange | D104: APMC-FCL08AMK2 | E104: 4716082100 | F104: Serwosilnik, APMC-FCL, 80mm, 2.39Nm, 3000obr/min, 750w, z hamulcem, Serial Enc. 19Bit MT, APMC-FCL08AMK2, 4716082100 | G104: □80, 750w, 2.39Nm, Serial Enc.19 Bit MT, Brake, [L7□A008U] | H104: 3000 | I104: 200 | J104: 80mm | K104: 750w | L104: 2.39Nm | M104: Serial Enc. 19Bit MT | N104: z hamulcem | O104: [L7□A008U] | W104: =VLOOKUP(E104,TabelaCen!$B$2:$C$988,2,FALSE) -> 653.02 | X104: 457.114
A105: SERWOSILNIK | B105: APMC-FCL | C105: 80 CL Flange | D105: APMC-FCL10AMK2 | E105: 4716082200 | F105: Serwosilnik, APMC-FCL, 80mm, 3.18Nm, 3000obr/min, 1Kw, z hamulcem, Serial Enc. 19Bit MT, APMC-FCL10AMK2, 4716082200 | G105: □80, 1Kw, 3.18Nm, Serial Enc.19 Bit MT, Brake, [L7□A010U] | H105: 3000 | I105: 200 | J105: 80mm | K105: 1Kw | L105: 3.18Nm | M105: Serial Enc. 19Bit MT | N105: z hamulcem | O105: [L7□A010U] | W105: =VLOOKUP(E105,TabelaCen!$B$2:$C$988,2,FALSE) -> 691.13 | X105: 483.791
A106: SERWOSILNIK | B106: APMC-FCL | C106: 80 CL Flange | D106: APMC-FCL03DMK | E106: 4716080700 | F106: Serwosilnik, APMC-FCL, 80mm, 1.43Nm, 2000obr/min, 300w, bez hamulca, Serial Enc. 19Bit MT, APMC-FCL03DMK, 4716080700 | G106: □80, 300w, 1.43Nm, Serial Enc.19 Bit MT, [L7□A004U] | H106: 2000 | I106: 200 | J106: 80mm | K106: 300w | L106: 1.43Nm | M106: Serial Enc. 19Bit MT | N106: bez hamulca | O106: [L7□A004U] | W106: =VLOOKUP(E106,TabelaCen!$B$2:$C$988,2,FALSE) -> 348.14 | X106: 243.698
A107: SERWOSILNIK | B107: APMC-FCL | C107: 80 CL Flange | D107: APMC-FCL05DMK | E107: 4716080800 | F107: Serwosilnik, APMC-FCL, 80mm, 2.15Nm, 2000obr/min, 450w, bez hamulca, Serial Enc. 19Bit MT, APMC-FCL05DMK, 4716080800 | G107: □80, 450w, 2.15Nm, Serial Enc.19 Bit MT, [L7□A008U] | H107: 2000 | I107: 200 | J107: 80mm | K107: 450w | L107: 2.15Nm | M107: Serial Enc. 19Bit MT | N107: bez hamulca | O107: [L7□A008U] | W107: =VLOOKUP(E107,TabelaCen!$B$2:$C$988,2,FALSE) -> 388.31 | X107: 271.817
A108: SERWOSILNIK | B108: APMC-FCL | C108: 80 CL Flange | D108: APMC-FCL06DMK | E108: 4716080900 | F108: Serwosilnik, APMC-FCL, 80mm, 2.63Nm, 2000obr/min, 550w, bez hamulca, Serial Enc. 19Bit MT, APMC-FCL06DMK, 4716080900 | G108: □80, 550w, 2.63Nm, Serial Enc.19 Bit MT, [L7□A008U] | H108: 2000 | I108: 200 | J108: 80mm | K108: 550w | L108: 2.63Nm | M108: Serial Enc. 19Bit MT | N108: bez hamulca | O108: [L7□A008U] | W108: =VLOOKUP(E108,TabelaCen!$B$2:$C$988,2,FALSE) -> 433.63 | X108: 303.541
A109: SERWOSILNIK | B109: APMC-FCL | C109: 80 CL Flange | D109: APMC-FCL07DMK | E109: 4716081000 | F109: Serwosilnik, APMC-FCL, 80mm, 3.10Nm, 2000obr/min, 650w, bez hamulca, Serial Enc. 19Bit MT, APMC-FCL07DMK, 4716081000 | G109: □80, 650w, 3.1Nm, Serial Enc.19 Bit MT, [L7□A008U] | H109: 2000 | I109: 200 | J109: 80mm | K109: 650w | L109: 3.10Nm | M109: Serial Enc. 19Bit MT | N109: bez hamulca | O109: [L7□A008U] | W109: =VLOOKUP(E109,TabelaCen!$B$2:$C$988,2,FALSE) -> 472.77 | X109: 330.939
A110: SERWOSILNIK | B110: APMC-FCL | C110: 80 CL Flange | D110: APMC-FCL03DMK2 | E110: 4716082300 | F110: Serwosilnik, APMC-FCL, 80mm, 1.43Nm, 2000obr/min, 300w, z hamulcem, Serial Enc. 19Bit MT, APMC-FCL03DMK2, 4716082300 | G110: □80, 300w, 1.43Nm, Serial Enc.19 Bit MT, Brake, [L7□A004U] | H110: 2000 | I110: 200 | J110: 80mm | K110: 300w | L110: 1.43Nm | M110: Serial Enc. 19Bit MT | N110: z hamulcem | O110: [L7□A004U] | W110: =VLOOKUP(E110,TabelaCen!$B$2:$C$988,2,FALSE) -> 566.5 | X110: 396.55
A111: SERWOSILNIK | B111: APMC-FCL | C111: 80 CL Flange | D111: APMC-FCL05DMK2 | E111: 4716082400 | F111: Serwosilnik, APMC-FCL, 80mm, 2.15Nm, 2000obr/min, 450w, z hamulcem, Serial Enc. 19Bit MT, APMC-FCL05DMK2, 4716082400 | G111: □80, 450w, 2.15Nm, Serial Enc.19 Bit MT, Brake, [L7□A008U] | H111: 2000 | I111: 200 | J111: 80mm | K111: 450w | L111: 2.15Nm | M111: Serial Enc. 19Bit MT | N111: z hamulcem | O111: [L7□A008U] | W111: =VLOOKUP(E111,TabelaCen!$B$2:$C$988,2,FALSE) -> 688.04 | X111: 481.628
A112: SERWOSILNIK | B112: APMC-FCL | C112: 80 CL Flange | D112: APMC-FCL06DMK2 | E112: 4716082500 | F112: Serwosilnik, APMC-FCL, 80mm, 2.63Nm, 2000obr/min, 550w, z hamulcem, Serial Enc. 19Bit MT, APMC-FCL06DMK2, 4716082500 | G112: □80, 550w, 2.63Nm, Serial Enc.19 Bit MT, Brake, [L7□A008U] | H112: 2000 | I112: 200 | J112: 80mm | K112: 550w | L112: 2.63Nm | M112: Serial Enc. 19Bit MT | N112: z hamulcem | O112: [L7□A008U] | W112: =VLOOKUP(E112,TabelaCen!$B$2:$C$988,2,FALSE) -> 654.05 | X112: 457.835
A113: SERWOSILNIK | B113: APMC-FCL | C113: 80 CL Flange | D113: APMC-FCL07DMK2 | E113: 4716082600 | F113: Serwosilnik, APMC-FCL, 80mm, 3.10Nm, 2000obr/min, 650w, z hamulcem, Serial Enc. 19Bit MT, APMC-FCL07DMK2, 4716082600 | G113: □80, 650w, 3.1Nm, Serial Enc.19 Bit MT, Brake, [L7□A008U] | H113: 2000 | I113: 200 | J113: 80mm | K113: 650w | L113: 3.10Nm | M113: Serial Enc. 19Bit MT | N113: z hamulcem | O113: [L7□A008U] | W113: =VLOOKUP(E113,TabelaCen!$B$2:$C$988,2,FALSE) -> 690.1 | X113: 483.07
A114: SERWOSILNIK | B114: APM-FE | C114: 130 E Flange | D114: APM-FE09AMK | E114: 4716019300 | F114: Serwosilnik, APM-FE, 130mm, 2.86Nm, 3000obr/min, 0.9Kw, bez hamulca, Serial Enc. 19Bit MT, APM-FE09AMK, 4716019300 | G114: □130, 0.9Kw, 2.86Nm, Serial Enc.19 Bit MT, [L7□A010U] | H114: 3000 | I114: 200 | J114: 130mm | K114: 0.9Kw | L114: 2.86Nm | M114: Serial Enc. 19Bit MT | N114: bez hamulca | O114: [L7□A010U] | W114: =VLOOKUP(E114,TabelaCen!$B$2:$C$988,2,FALSE) -> 629.33 | X114: 440.531
A115: SERWOSILNIK | B115: APM-FE | C115: 130 E Flange | D115: APM-FE15AMK | E115: 4716019400 | F115: Serwosilnik, APM-FE, 130mm, 4.77Nm, 3000obr/min, 1.5Kw, bez hamulca, Serial Enc. 19Bit MT, APM-FE15AMK, 4716019400 | G115: □130, 1.5Kw, 4.77Nm, Serial Enc.19 Bit MT, [L7□A020U] | H115: 3000 | I115: 200 | J115: 130mm | K115: 1.5Kw | L115: 4.77Nm | M115: Serial Enc. 19Bit MT | N115: bez hamulca | O115: [L7□A020U] | W115: =VLOOKUP(E115,TabelaCen!$B$2:$C$988,2,FALSE) -> 695.25 | X115: 486.675
A116: SERWOSILNIK | B116: APM-FE | C116: 130 E Flange | D116: APM-FE22AMK | E116: 4716019500 | F116: Serwosilnik, APM-FE, 130mm, 7.00Nm, 3000obr/min, 2.2Kw, bez hamulca, Serial Enc. 19Bit MT, APM-FE22AMK, 4716019500 | G116: □130, 2.2Kw, 7Nm, Serial Enc.19 Bit MT, [L7□A035U] | H116: 3000 | I116: 200 | J116: 130mm | K116: 2.2Kw | L116: 7.00Nm | M116: Serial Enc. 19Bit MT | N116: bez hamulca | O116: [L7□A035U] | W116: =VLOOKUP(E116,TabelaCen!$B$2:$C$988,2,FALSE) -> 757.05 | X116: 529.935
A117: SERWOSILNIK | B117: APM-FE | C117: 130 E Flange | D117: APM-FE30AMK | E117: 4716019600 | F117: Serwosilnik, APM-FE, 130mm, 9.55Nm, 3000obr/min, 3Kw, bez hamulca, Serial Enc. 19Bit MT, APM-FE30AMK, 4716019600 | G117: □130, 3Kw, 9.55Nm, Serial Enc.19 Bit MT, [L7□A035U] | H117: 3000 | I117: 200 | J117: 130mm | K117: 3Kw | L117: 9.55Nm | M117: Serial Enc. 19Bit MT | N117: bez hamulca | O117: [L7□A035U] | W117: =VLOOKUP(E117,TabelaCen!$B$2:$C$988,2,FALSE) -> 777.65 | X117: 544.355
A118: SERWOSILNIK | B118: APM-FE | C118: 130 E Flange | D118: APM-FE09AMK2 | E118: 4716023500 | F118: Serwosilnik, APM-FE, 130mm, 2.86Nm, 3000obr/min, 0.9Kw, z hamulcem, Serial Enc. 19Bit MT, APM-FE09AMK2, 4716023500 | G118: □130, 0.9Kw, 2.86Nm, Serial Enc.19 Bit MT, Brake, [L7□A010U] | H118: 3000 | I118: 200 | J118: 130mm | K118: 0.9Kw | L118: 2.86Nm | M118: Serial Enc. 19Bit MT | N118: z hamulcem | O118: [L7□A010U] | W118: =VLOOKUP(E118,TabelaCen!$B$2:$C$988,2,FALSE) -> 848.72 | X118: 594.104
A119: SERWOSILNIK | B119: APM-FE | C119: 130 E Flange | D119: APM-FE15AMK2 | E119: 4716023600 | F119: Serwosilnik, APM-FE, 130mm, 4.77Nm, 3000obr/min, 1.5Kw, z hamulcem, Serial Enc. 19Bit MT, APM-FE15AMK2, 4716023600 | G119: □130, 1.5Kw, 4.77Nm, Serial Enc.19 Bit MT, Brake, [L7□A020U] | H119: 3000 | I119: 200 | J119: 130mm | K119: 1.5Kw | L119: 4.77Nm | M119: Serial Enc. 19Bit MT | N119: z hamulcem | O119: [L7□A020U] | W119: =VLOOKUP(E119,TabelaCen!$B$2:$C$988,2,FALSE) -> 914.64 | X119: 640.248
A120: SERWOSILNIK | B120: APM-FE | C120: 130 E Flange | D120: APM-FE22AMK2 | E120: 4716023700 | F120: Serwosilnik, APM-FE, 130mm, 7.00Nm, 3000obr/min, 2.2Kw, z hamulcem, Serial Enc. 19Bit MT, APM-FE22AMK2, 4716023700 | G120: □130, 2.2Kw, 7Nm, Serial Enc.19 Bit MT, Brake, [L7□A035U] | H120: 3000 | I120: 200 | J120: 130mm | K120: 2.2Kw | L120: 7.00Nm | M120: Serial Enc. 19Bit MT | N120: z hamulcem | O120: [L7□A035U] | W120: =VLOOKUP(E120,TabelaCen!$B$2:$C$988,2,FALSE) -> 976.44 | X120: 683.508
A121: SERWOSILNIK | B121: APM-FE | C121: 130 E Flange | D121: APM-FE30AMK2 | E121: 4716023800 | F121: Serwosilnik, APM-FE, 130mm, 9.55Nm, 3000obr/min, 3Kw, z hamulcem, Serial Enc. 19Bit MT, APM-FE30AMK2, 4716023800 | G121: □130, 3Kw, 9.55Nm, Serial Enc.19 Bit MT, Brake, [L7□A035U] | H121: 3000 | I121: 200 | J121: 130mm | K121: 3Kw | L121: 9.55Nm | M121: Serial Enc. 19Bit MT | N121: z hamulcem | O121: [L7□A035U] | W121: =VLOOKUP(E121,TabelaCen!$B$2:$C$988,2,FALSE) -> 996.01 | X121: 697.207
A122: SERWOSILNIK | B122: APM-FE | C122: 130 E Flange | D122: APM-FE06DMK | E122: 4716019800 | F122: Serwosilnik, APM-FE, 130mm, 2.86Nm, 2000obr/min, 600w, bez hamulca, Serial Enc. 19Bit MT, APM-FE06DMK, 4716019800 | G122: □130, 600w, 2.86Nm, Serial Enc.19 Bit MT, [L7□A008U] | H122: 2000 | I122: 200 | J122: 130mm | K122: 600w | L122: 2.86Nm | M122: Serial Enc. 19Bit MT | N122: bez hamulca | O122: [L7□A008U] | W122: =VLOOKUP(E122,TabelaCen!$B$2:$C$988,2,FALSE) -> 631.39 | X122: 441.973
A123: SERWOSILNIK | B123: APM-FE | C123: 130 E Flange | D123: APM-FE11DMK | E123: 4716019900 | F123: =CONCATENATE("Serwosilnik",", ",B123,", ",J123,", ",L123,", ",H123,"obr/min, ",K123,", ",N123,", ",M123,", ",D123,", ",E123) -> Serwosilnik, APM-FE, 130mm, 5.25Nm, 2000obr/min, 1.1Kw, bez hamulca, Serial Enc. 19Bit MT, APM-FE11DMK, 4716019900 | G123: □130, 1.1Kw, 5.25Nm, Serial Enc.19 Bit MT, [L7□A010U] | H123: 2000 | I123: 200 | J123: 130mm | K123: 1.1Kw | L123: 5.25Nm | M123: Serial Enc. 19Bit MT | N123: bez hamulca | O123: [L7□A010U] | W123: =VLOOKUP(E123,TabelaCen!$B$2:$C$988,2,FALSE) -> 695.25 | X123: =W123-(W123*$X$55) -> 486.675
A124: SERWOSILNIK | B124: APM-FE | C124: 130 E Flange | D124: APM-FE16DMK | E124: 4716020000 | F124: Serwosilnik, APM-FE, 130mm, 7.63Nm, 2000obr/min, 1.6Kw, bez hamulca, Serial Enc. 19Bit MT, APM-FE16DMK, 4716020000 | G124: □130, 1.6Kw, 7.63Nm, Serial Enc.19 Bit MT, [L7□A020U] | H124: 2000 | I124: 200 | J124: 130mm | K124: 1.6Kw | L124: 7.63Nm | M124: Serial Enc. 19Bit MT | N124: bez hamulca | O124: [L7□A020U] | W124: =VLOOKUP(E124,TabelaCen!$B$2:$C$988,2,FALSE) -> 744.69 | X124: 521.283
A125: SERWOSILNIK | B125: APM-FE | C125: 130 E Flange | D125: APM-FE22DMK | E125: 4716020100 | F125: Serwosilnik, APM-FE, 130mm, 10.50Nm, 2000obr/min, 2.2Kw, bez hamulca, Serial Enc. 19Bit MT, APM-FE22DMK, 4716020100 | G125: □130, 2.2Kw, 10.5Nm, Serial Enc.19 Bit MT, [L7□A035U] | H125: 2000 | I125: 200 | J125: 130mm | K125: 2.2Kw | L125: 10.50Nm | M125: Serial Enc. 19Bit MT | N125: bez hamulca | O125: [L7□A035U] | W125: =VLOOKUP(E125,TabelaCen!$B$2:$C$988,2,FALSE) -> 776.62 | X125: 543.634
A126: SERWOSILNIK | B126: APM-FE | C126: 130 E Flange | D126: APM-FE06DMK2 | E126: 4716024000 | F126: Serwosilnik, APM-FE, 130mm, 2.86Nm, 2000obr/min, 600w, z hamulcem, Serial Enc. 19Bit MT, APM-FE06DMK2, 4716024000 | G126: □130, 600w, 2.86Nm, Serial Enc.19 Bit MT, Brake, [L7□A008U] | H126: 2000 | I126: 200 | J126: 130mm | K126: 600w | L126: 2.86Nm | M126: Serial Enc. 19Bit MT | N126: z hamulcem | O126: [L7□A008U] | W126: =VLOOKUP(E126,TabelaCen!$B$2:$C$988,2,FALSE) -> 851.81 | X126: 596.267
A127: SERWOSILNIK | B127: APM-FE | C127: 130 E Flange | D127: APM-FE11DMK2 | E127: 4716024100 | F127: Serwosilnik, APM-FE, 130mm, 5.25Nm, 2000obr/min, 1.1Kw, z hamulcem, Serial Enc. 19Bit MT, APM-FE11DMK2, 4716024100 | G127: □130, 1.1Kw, 5.25Nm, Serial Enc.19 Bit MT, Brake, [L7□A010U] | H127: 2000 | I127: 200 | J127: 130mm | K127: 1.1Kw | L127: 5.25Nm | M127: Serial Enc. 19Bit MT | N127: z hamulcem | O127: [L7□A010U] | W127: =VLOOKUP(E127,TabelaCen!$B$2:$C$988,2,FALSE) -> 915.67 | X127: 640.969
A128: SERWOSILNIK | B128: APM-FE | C128: 130 E Flange | D128: APM-FE16DMK2 | E128: 4716024200 | F128: Serwosilnik, APM-FE, 130mm, 7.63Nm, 2000obr/min, 1.6Kw, z hamulcem, Serial Enc. 19Bit MT, APM-FE16DMK2, 4716024200 | G128: □130, 1.6Kw, 7.63Nm, Serial Enc.19 Bit MT, Brake, [L7□A020U] | H128: 2000 | I128: 200 | J128: 130mm | K128: 1.6Kw | L128: 7.63Nm | M128: Serial Enc. 19Bit MT | N128: z hamulcem | O128: [L7□A020U] | W128: =VLOOKUP(E128,TabelaCen!$B$2:$C$988,2,FALSE) -> 964.08 | X128: 674.856
A129: SERWOSILNIK | B129: APM-FE | C129: 130 E Flange | D129: APM-FE22DMK2 | E129: 4716024300 | F129: Serwosilnik, APM-FE, 130mm, 10.50Nm, 2000obr/min, 2.2Kw, z hamulcem, Serial Enc. 19Bit MT, APM-FE22DMK2, 4716024300 | G129: □130, 2.2Kw, 10.5Nm, Serial Enc.19 Bit MT, Brake, [L7□A035U] | H129: 2000 | I129: 200 | J129: 130mm | K129: 2.2Kw | L129: 10.50Nm | M129: Serial Enc. 19Bit MT | N129: z hamulcem | O129: [L7□A035U] | W129: =VLOOKUP(E129,TabelaCen!$B$2:$C$988,2,FALSE) -> 994.98 | X129: 696.486
A130: SERWOSILNIK | B130: APM-FE | C130: 130 E Flange | D130: APM-FE05GMK | E130: 4716020600 | F130: Serwosilnik, APM-FE, 130mm, 2.86Nm, 1500obr/min, 450w, bez hamulca, Serial Enc. 19Bit MT, APM-FE05GMK, 4716020600 | G130: □130, 450w, 2.86Nm, Serial Enc.19 Bit MT, [L7□A008U] | H130: 1500 | I130: 200 | J130: 130mm | K130: 450w | L130: 2.86Nm | M130: Serial Enc. 19Bit MT | N130: bez hamulca | O130: [L7□A008U] | W130: =VLOOKUP(E130,TabelaCen!$B$2:$C$988,2,FALSE) -> 631.39 | X130: 441.973
A131: SERWOSILNIK | B131: APM-FE | C131: 130 E Flange | D131: APM-FE09GMK | E131: 4716020700 | F131: Serwosilnik, APM-FE, 130mm, 5.41Nm, 1500obr/min, 850w, bez hamulca, Serial Enc. 19Bit MT, APM-FE09GMK, 4716020700 | G131: □130, 850w, 5.41Nm, Serial Enc.19 Bit MT, [L7□A010U] | H131: 1500 | I131: 200 | J131: 130mm | K131: 850w | L131: 5.41Nm | M131: Serial Enc. 19Bit MT | N131: bez hamulca | O131: [L7□A010U] | W131: =VLOOKUP(E131,TabelaCen!$B$2:$C$988,2,FALSE) -> 695.25 | X131: 486.675
A132: SERWOSILNIK | B132: APM-FE | C132: 130 E Flange | D132: APM-FE13GMK | E132: 4716020800 | F132: Serwosilnik, APM-FE, 130mm, 8.27Nm, 1500obr/min, 1.3Kw, bez hamulca, Serial Enc. 19Bit MT, APM-FE13GMK, 4716020800 | G132: □130, 1.3Kw, 8.27Nm, Serial Enc.19 Bit MT, [L7□A020U] | H132: 1500 | I132: 200 | J132: 130mm | K132: 1.3Kw | L132: 8.27Nm | M132: Serial Enc. 19Bit MT | N132: bez hamulca | O132: [L7□A020U] | W132: =VLOOKUP(E132,TabelaCen!$B$2:$C$988,2,FALSE) -> 744.69 | X132: 521.283
A133: SERWOSILNIK | B133: APM-FE | C133: 130 E Flange | D133: APM-FE17GMK | E133: 4716020900 | F133: Serwosilnik, APM-FE, 130mm, 10.82Nm, 1500obr/min, 1.7Kw, bez hamulca, Serial Enc. 19Bit MT, APM-FE17GMK, 4716020900 | G133: □130, 1.7Kw, 10.82Nm, Serial Enc.19 Bit MT, [L7□A020U] | H133: 1500 | I133: 200 | J133: 130mm | K133: 1.7Kw | L133: 10.82Nm | M133: Serial Enc. 19Bit MT | N133: bez hamulca | O133: [L7□A020U] | W133: =VLOOKUP(E133,TabelaCen!$B$2:$C$988,2,FALSE) -> 776.62 | X133: 543.634
A134: SERWOSILNIK | B134: APM-FE | C134: 130 E Flange | D134: APM-FE05GMK2 | E134: 4716024800 | F134: Serwosilnik, APM-FE, 130mm, 2.86Nm, 1500obr/min, 450w, z hamulcem, Serial Enc. 19Bit MT, APM-FE05GMK2, 4716024800 | G134: □130, 450w, 2.86Nm, Serial Enc.19 Bit MT, Brake, [L7□A008U] | H134: 1500 | I134: 200 | J134: 130mm | K134: 450w | L134: 2.86Nm | M134: Serial Enc. 19Bit MT | N134: z hamulcem | O134: [L7□A008U] | W134: =VLOOKUP(E134,TabelaCen!$B$2:$C$988,2,FALSE) -> 851.81 | X134: 596.267
A135: SERWOSILNIK | B135: APM-FE | C135: 130 E Flange | D135: APM-FE09GMK2 | E135: 4716024900 | F135: Serwosilnik, APM-FE, 130mm, 5.41Nm, 1500obr/min, 850w, z hamulcem, Serial Enc. 19Bit MT, APM-FE09GMK2, 4716024900 | G135: □130, 850w, 5.41Nm, Serial Enc.19 Bit MT, Brake, [L7□A010U] | H135: 1500 | I135: 200 | J135: 130mm | K135: 850w | L135: 5.41Nm | M135: Serial Enc. 19Bit MT | N135: z hamulcem | O135: [L7□A010U] | W135: =VLOOKUP(E135,TabelaCen!$B$2:$C$988,2,FALSE) -> 915.67 | X135: 640.969
A136: SERWOSILNIK | B136: APM-FE | C136: 130 E Flange | D136: APM-FE13GMK2 | E136: 4716025000 | F136: Serwosilnik, APM-FE, 130mm, 8.27Nm, 1500obr/min, 1.3Kw, z hamulcem, Serial Enc. 19Bit MT, APM-FE13GMK2, 4716025000 | G136: □130, 1.3Kw, 8.27Nm, Serial Enc.19 Bit MT, Brake, [L7□A020U] | H136: 1500 | I136: 200 | J136: 130mm | K136: 1.3Kw | L136: 8.27Nm | M136: Serial Enc. 19Bit MT | N136: z hamulcem | O136: [L7□A020U] | W136: =VLOOKUP(E136,TabelaCen!$B$2:$C$988,2,FALSE) -> 964.08 | X136: 674.856
A137: SERWOSILNIK | B137: APM-FE | C137: 130 E Flange | D137: APM-FE17GMK2 | E137: 4716025100 | F137: Serwosilnik, APM-FE, 130mm, 10.82Nm, 1500obr/min, 1.7Kw, z hamulcem, Serial Enc. 19Bit MT, APM-FE17GMK2, 4716025100 | G137: □130, 1.7Kw, 10.82Nm, Serial Enc.19 Bit MT, Brake, [L7□A020U] | H137: 1500 | I137: 200 | J137: 130mm | K137: 1.7Kw | L137: 10.82Nm | M137: Serial Enc. 19Bit MT | N137: z hamulcem | O137: [L7□A020U] | W137: =VLOOKUP(E137,TabelaCen!$B$2:$C$988,2,FALSE) -> 994.98 | X137: 696.486
A138: SERWOSILNIK | B138: APM-FE | C138: 130 E Flange | D138: APM-FE03MMK | E138: 4716021400 | F138: Serwosilnik, APM-FE, 130mm, 2.86Nm, 1000obr/min, 300w, bez hamulca, Serial Enc. 19Bit MT, APM-FE03MMK, 4716021400 | G138: □130, 300w, 2.86Nm, Serial Enc.19 Bit MT, [L7□A004U] | H138: 1000 | I138: 200 | J138: 130mm | K138: 300w | L138: 2.86Nm | M138: Serial Enc. 19Bit MT | N138: bez hamulca | O138: [L7□A004U] | W138: =VLOOKUP(E138,TabelaCen!$B$2:$C$988,2,FALSE) -> 631.39 | X138: 441.973
A139: SERWOSILNIK | B139: APM-FE | C139: 130 E Flange | D139: APM-FE06MMK | E139: 4716021500 | F139: Serwosilnik, APM-FE, 130mm, 5.72Nm, 1000obr/min, 600w, bez hamulca, Serial Enc. 19Bit MT, APM-FE06MMK, 4716021500 | G139: □130, 600w, 5.72Nm, Serial Enc.19 Bit MT, [L7□A008U] | H139: 1000 | I139: 200 | J139: 130mm | K139: 600w | L139: 5.72Nm | M139: Serial Enc. 19Bit MT | N139: bez hamulca | O139: [L7□A008U] | W139: =VLOOKUP(E139,TabelaCen!$B$2:$C$988,2,FALSE) -> 696.28 | X139: 487.396
A140: SERWOSILNIK | B140: APM-FE | C140: 130 E Flange | D140: APM-FE09MMK | E140: 4716021600 | F140: Serwosilnik, APM-FE, 130mm, 8.59Nm, 1000obr/min, 900w, bez hamulca, Serial Enc. 19Bit MT, APM-FE09MMK, 4716021600 | G140: □130, 900w, 8.59Nm, Serial Enc.19 Bit MT, [L7□A010U] | H140: 1000 | I140: 200 | J140: 130mm | K140: 900w | L140: 8.59Nm | M140: Serial Enc. 19Bit MT | N140: bez hamulca | O140: [L7□A010U] | W140: =VLOOKUP(E140,TabelaCen!$B$2:$C$988,2,FALSE) -> 744.69 | X140: 521.283
A141: SERWOSILNIK | B141: APM-FE | C141: 130 E Flange | D141: APM-FE12MMK | E141: 4716021700 | F141: Serwosilnik, APM-FE, 130mm, 11.46Nm, 1000obr/min, 1.2Kw, bez hamulca, Serial Enc. 19Bit MT, APM-FE12MMK, 4716021700 | G141: □130, 1.2Kw, 11.46Nm, Serial Enc.19 Bit MT, [L7□A020U] | H141: 1000 | I141: 200 | J141: 130mm | K141: 1.2Kw | L141: 11.46Nm | M141: Serial Enc. 19Bit MT | N141: bez hamulca | O141: [L7□A020U] | W141: =VLOOKUP(E141,TabelaCen!$B$2:$C$988,2,FALSE) -> 781.77 | X141: 547.239
A142: SERWOSILNIK | B142: APM-FE | C142: 130 E Flange | D142: APM-FE03MMK2 | E142: 4716025500 | F142: Serwosilnik, APM-FE, 130mm, 2.86Nm, 1000obr/min, 600w, z hamulcem, Serial Enc. 19Bit MT, APM-FE03MMK2, 4716025500 | G142: □130, 600w, 2.86Nm, Serial Enc.19 Bit MT, Brake, [L7□A004U] | H142: 1000 | I142: 200 | J142: 130mm | K142: 600w | L142: 2.86Nm | M142: Serial Enc. 19Bit MT | N142: z hamulcem | O142: [L7□A004U] | W142: =VLOOKUP(E142,TabelaCen!$B$2:$C$988,2,FALSE) -> 850.78 | X142: 595.546
A143: SERWOSILNIK | B143: APM-FE | C143: 130 E Flange | D143: APM-FE06MMK2 | E143: 4716025600 | F143: Serwosilnik, APM-FE, 130mm, 5.72Nm, 1000obr/min, 600w, z hamulcem, Serial Enc. 19Bit MT, APM-FE06MMK2, 4716025600 | G143: □130, 600w, 5.72Nm, Serial Enc.19 Bit MT, Brake, [L7□A008U] | H143: 1000 | I143: 200 | J143: 130mm | K143: 600w | L143: 5.72Nm | M143: Serial Enc. 19Bit MT | N143: z hamulcem | O143: [L7□A008U] | W143: =VLOOKUP(E143,TabelaCen!$B$2:$C$988,2,FALSE) -> 915.67 | X143: 640.969
A144: SERWOSILNIK | B144: APM-FE | C144: 130 E Flange | D144: APM-FE09MMK2 | E144: 4716025700 | F144: Serwosilnik, APM-FE, 130mm, 8.59Nm, 1000obr/min, 900w, z hamulcem, Serial Enc. 19Bit MT, APM-FE09MMK2, 4716025700 | G144: □130, 900w, 8.59Nm, Serial Enc.19 Bit MT, Brake, [L7□A010U] | H144: 1000 | I144: 200 | J144: 130mm | K144: 900w | L144: 8.59Nm | M144: Serial Enc. 19Bit MT | N144: z hamulcem | O144: [L7□A010U] | W144: =VLOOKUP(E144,TabelaCen!$B$2:$C$988,2,FALSE) -> 964.08 | X144: 674.856
A145: SERWOSILNIK | B145: APM-FE | C145: 130 E Flange | D145: APM-FE12MMK2 | E145: 4716025800 | F145: Serwosilnik, APM-FE, 130mm, 11.46Nm, 1000obr/min, 1.2Kw, z hamulcem, Serial Enc. 19Bit MT, APM-FE12MMK2, 4716025800 | G145: □130, 1.2Kw, 11.46Nm, Serial Enc.19 Bit MT, Brake, [L7□A020U] | H145: 1000 | I145: 200 | J145: 130mm | K145: 1.2Kw | L145: 11.46Nm | M145: Serial Enc. 19Bit MT | N145: z hamulcem | O145: [L7□A020U] | W145: =VLOOKUP(E145,TabelaCen!$B$2:$C$988,2,FALSE) -> 1001.16 | X145: 700.812
A146: SERWOSILNIK | B146: APM-FE | C146: 130 E Flange | D146: APM-FEP09AMK | E146: 4716060600 | F146: Serwosilnik, APM-FE, 130mm, 2.86Nm, 3000obr/min, 900w, bez hamulca, Serial Enc. 19Bit MT, APM-FEP09AMK, 4716060600 | G146: □130, 900w, 2.86Nm, Serial Enc.19 Bit MT, [L7□B010U] | H146: 3000 | I146: 400 | J146: 130mm | K146: 900w | L146: 2.86Nm | M146: Serial Enc. 19Bit MT | N146: bez hamulca | O146: [L7□B010U] | W146: =VLOOKUP(E146,TabelaCen!$B$2:$C$988,2,FALSE) -> 636.54 | X146: 445.578
A147: SERWOSILNIK | B147: APM-FE | C147: 130 E Flange | D147: APM-FEP15AMK | E147: 4716060700 | F147: Serwosilnik, APM-FE, 130mm, 4.77Nm, 3000obr/min, 1.5Kw, bez hamulca, Serial Enc. 19Bit MT, APM-FEP15AMK, 4716060700 | G147: □130, 1.5Kw, 4.77Nm, Serial Enc.19 Bit MT, [L7□B020U] | H147: 3000 | I147: 400 | J147: 130mm | K147: 1.5Kw | L147: 4.77Nm | M147: Serial Enc. 19Bit MT | N147: bez hamulca | O147: [L7□B020U] | W147: =VLOOKUP(E147,TabelaCen!$B$2:$C$988,2,FALSE) -> 696.28 | X147: 487.396
A148: SERWOSILNIK | B148: APM-FE | C148: 130 E Flange | D148: APM-FEP22AMK | E148: 4716060800 | F148: Serwosilnik, APM-FE, 130mm, 7.00Nm, 3000obr/min, 2.2Kw, bez hamulca, Serial Enc. 19Bit MT, APM-FEP22AMK, 4716060800 | G148: □130, 2.2Kw, 7Nm, Serial Enc.19 Bit MT, [L7□B035U] | H148: 3000 | I148: 400 | J148: 130mm | K148: 2.2Kw | L148: 7.00Nm | M148: Serial Enc. 19Bit MT | N148: bez hamulca | O148: [L7□B035U] | W148: =VLOOKUP(E148,TabelaCen!$B$2:$C$988,2,FALSE) -> 754.99 | X148: 528.493
A149: SERWOSILNIK | B149: APM-FE | C149: 130 E Flange | D149: APM-FEP30AMK | E149: 4716060900 | F149: Serwosilnik, APM-FE, 130mm, 9.55Nm, 3000obr/min, 3Kw, bez hamulca, Serial Enc. 19Bit MT, APM-FEP30AMK, 4716060900 | G149: □130, 3Kw, 9.55Nm, Serial Enc.19 Bit MT, [L7□B035U] | H149: 3000 | I149: 400 | J149: 130mm | K149: 3Kw | L149: 9.55Nm | M149: Serial Enc. 19Bit MT | N149: bez hamulca | O149: [L7□B035U] | W149: =VLOOKUP(E149,TabelaCen!$B$2:$C$988,2,FALSE) -> 784.86 | X149: 549.402
A150: SERWOSILNIK | B150: APM-FE | C150: 130 E Flange | D150: APM-FEP09AMK2 | E150: 4716065400 | F150: Serwosilnik, APM-FE, 130mm, 2.86Nm, 3000obr/min, 900w, z hamulcem, Serial Enc. 19Bit MT, APM-FEP09AMK2, 4716065400 | G150: □130, 900w, 2.86Nm, Serial Enc.19 Bit MT, Brake, [L7□B010U] | H150: 3000 | I150: 400 | J150: 130mm | K150: 900w | L150: 2.86Nm | M150: Serial Enc. 19Bit MT | N150: z hamulcem | O150: [L7□B010U] | W150: =VLOOKUP(E150,TabelaCen!$B$2:$C$988,2,FALSE) -> 857.99 | X150: 600.593
A151: SERWOSILNIK | B151: APM-FE | C151: 130 E Flange | D151: APM-FEP15AMK2 | E151: 4716065500 | F151: Serwosilnik, APM-FE, 130mm, 4.77Nm, 3000obr/min, 1.5Kw, z hamulcem, Serial Enc. 19Bit MT, APM-FEP15AMK2, 4716065500 | G151: □130, 1.5Kw, 4.77Nm, Serial Enc.19 Bit MT, Brake, [L7□B020U] | H151: 3000 | I151: 400 | J151: 130mm | K151: 1.5Kw | L151: 4.77Nm | M151: Serial Enc. 19Bit MT | N151: z hamulcem | O151: [L7□B020U] | W151: =VLOOKUP(E151,TabelaCen!$B$2:$C$988,2,FALSE) -> 916.7 | X151: 641.69
A152: SERWOSILNIK | B152: APM-FE | C152: 130 E Flange | D152: APM-FEP22AMK2 | E152: 4716065600 | F152: Serwosilnik, APM-FE, 130mm, 7.00Nm, 3000obr/min, 2.2Kw, z hamulcem, Serial Enc. 19Bit MT, APM-FEP22AMK2, 4716065600 | G152: □130, 2.2Kw, 7Nm, Serial Enc.19 Bit MT, Brake, [L7□B035U] | H152: 3000 | I152: 400 | J152: 130mm | K152: 2.2Kw | L152: 7.00Nm | M152: Serial Enc. 19Bit MT | N152: z hamulcem | O152: [L7□B035U] | W152: =VLOOKUP(E152,TabelaCen!$B$2:$C$988,2,FALSE) -> 975.41 | X152: 682.787
A153: SERWOSILNIK | B153: APM-FE | C153: 130 E Flange | D153: APM-FEP30AMK2 | E153: 4716065700 | F153: Serwosilnik, APM-FE, 130mm, 9.55Nm, 3000obr/min, 3Kw, z hamulcem, Serial Enc. 19Bit MT, APM-FEP30AMK2, 4716065700 | G153: □130, 3Kw, 9.55Nm, Serial Enc.19 Bit MT, Brake, [L7□B035U] | H153: 3000 | I153: 400 | J153: 130mm | K153: 3Kw | L153: 9.55Nm | M153: Serial Enc. 19Bit MT | N153: z hamulcem | O153: [L7□B035U] | W153: =VLOOKUP(E153,TabelaCen!$B$2:$C$988,2,FALSE) -> 1004.25 | X153: 702.975
A154: SERWOSILNIK | B154: APM-FE | C154: 130 E Flange | D154: APM-FEP06DMK | E154: 4716061200 | F154: Serwosilnik, APM-FE, 130mm, 2.86Nm, 2000obr/min, 600w, bez hamulca, Serial Enc. 19Bit MT, APM-FEP06DMK, 4716061200 | G154: □130, 600w, 2.86Nm, Serial Enc.19 Bit MT, [L7□B010U] | H154: 2000 | I154: 400 | J154: 130mm | K154: 600w | L154: 2.86Nm | M154: Serial Enc. 19Bit MT | N154: bez hamulca | O154: [L7□B010U] | W154: =VLOOKUP(E154,TabelaCen!$B$2:$C$988,2,FALSE) -> 637.57 | X154: 446.299
A155: SERWOSILNIK | B155: APM-FE | C155: 130 E Flange | D155: APM-FEP11DMK | E155: 4716061300 | F155: Serwosilnik, APM-FE, 130mm, 5.25Nm, 2000obr/min, 1.1Kw, bez hamulca, Serial Enc. 19Bit MT, APM-FEP11DMK, 4716061300 | G155: □130, 1.1Kw, 5.25Nm, Serial Enc.19 Bit MT, [L7□B010U] | H155: 2000 | I155: 400 | J155: 130mm | K155: 1.1Kw | L155: 5.25Nm | M155: Serial Enc. 19Bit MT | N155: bez hamulca | O155: [L7□B010U] | W155: =VLOOKUP(E155,TabelaCen!$B$2:$C$988,2,FALSE) -> 695.25 | X155: 486.675
A156: SERWOSILNIK | B156: APM-FE | C156: 130 E Flange | D156: APM-FEP16DMK | E156: 4716061400 | F156: Serwosilnik, APM-FE, 130mm, 7.64Nm, 2000obr/min, 1.6Kw, bez hamulca, Serial Enc. 19Bit MT, APM-FEP16DMK, 4716061400 | G156: □130, 1.6Kw, 7.64Nm, Serial Enc.19 Bit MT, [L7□B020U] | H156: 2000 | I156: 400 | J156: 130mm | K156: 1.6Kw | L156: 7.64Nm | M156: Serial Enc. 19Bit MT | N156: bez hamulca | O156: [L7□B020U] | W156: =VLOOKUP(E156,TabelaCen!$B$2:$C$988,2,FALSE) -> 753.96 | X156: 527.772
A157: SERWOSILNIK | B157: APM-FE | C157: 130 E Flange | D157: APM-FEP22DMK | E157: 4716061500 | F157: Serwosilnik, APM-FE, 130mm, 10.50Nm, 2000obr/min, 2.2Kw, bez hamulca, Serial Enc. 19Bit MT, APM-FEP22DMK, 4716061500 | G157: □130, 2.2Kw, 10.5Nm, Serial Enc.19 Bit MT, [L7□B020U] | H157: 2000 | I157: 400 | J157: 130mm | K157: 2.2Kw | L157: 10.50Nm | M157: Serial Enc. 19Bit MT | N157: bez hamulca | O157: [L7□B020U] | W157: =VLOOKUP(E157,TabelaCen!$B$2:$C$988,2,FALSE) -> 785.89 | X157: 550.123
A158: SERWOSILNIK | B158: APM-FE | C158: 130 E Flange | D158: APM-FEP06DMK2 | E158: 4716066000 | F158: Serwosilnik, APM-FE, 130mm, 2.86Nm, 2000obr/min, 600w, z hamulcem, Serial Enc. 19Bit MT, APM-FEP06DMK2, 4716066000 | G158: □130, 600w, 2.86Nm, Serial Enc.19 Bit MT, Brake, [L7□B010U] | H158: 2000 | I158: 400 | J158: 130mm | K158: 600w | L158: 2.86Nm | M158: Serial Enc. 19Bit MT | N158: z hamulcem | O158: [L7□B010U] | W158: =VLOOKUP(E158,TabelaCen!$B$2:$C$988,2,FALSE) -> 859.02 | X158: 601.314
A159: SERWOSILNIK | B159: APM-FE | C159: 130 E Flange | D159: APM-FEP11DMK2 | E159: 4716066100 | F159: Serwosilnik, APM-FE, 130mm, 5.25Nm, 2000obr/min, 1.1Kw, z hamulcem, Serial Enc. 19Bit MT, APM-FEP11DMK2, 4716066100 | G159: □130, 1.1Kw, 5.25Nm, Serial Enc.19 Bit MT, Brake, [L7□B010U] | H159: 2000 | I159: 400 | J159: 130mm | K159: 1.1Kw | L159: 5.25Nm | M159: Serial Enc. 19Bit MT | N159: z hamulcem | O159: [L7□B010U] | W159: =VLOOKUP(E159,TabelaCen!$B$2:$C$988,2,FALSE) -> 915.67 | X159: 640.969
A160: SERWOSILNIK | B160: APM-FE | C160: 130 E Flange | D160: APM-FEP16DMK2 | E160: 4716066200 | F160: Serwosilnik, APM-FE, 130mm, 7.64Nm, 2000obr/min, 1.6Kw, z hamulcem, Serial Enc. 19Bit MT, APM-FEP16DMK2, 4716066200 | G160: □130, 1.6Kw, 7.64Nm, Serial Enc.19 Bit MT, Brake, [L7□B020U] | H160: 2000 | I160: 400 | J160: 130mm | K160: 1.6Kw | L160: 7.64Nm | M160: Serial Enc. 19Bit MT | N160: z hamulcem | O160: [L7□B020U] | W160: =VLOOKUP(E160,TabelaCen!$B$2:$C$988,2,FALSE) -> 973.35 | X160: 681.345
A161: SERWOSILNIK | B161: APM-FE | C161: 130 E Flange | D161: APM-FEP22DMK2 | E161: 4716066300 | F161: Serwosilnik, APM-FE, 130mm, 10.50Nm, 2000obr/min, 2.2Kw, z hamulcem, Serial Enc. 19Bit MT, APM-FEP22DMK2, 4716066300 | G161: □130, 2.2Kw, 10.5Nm, Serial Enc.19 Bit MT, Brake, [L7□B020U] | H161: 2000 | I161: 400 | J161: 130mm | K161: 2.2Kw | L161: 10.50Nm | M161: Serial Enc. 19Bit MT | N161: z hamulcem | O161: [L7□B020U] | W161: =VLOOKUP(E161,TabelaCen!$B$2:$C$988,2,FALSE) -> 1004.25 | X161: 702.975
A162: SERWOSILNIK | B162: APM-FE | C162: 130 E Flange | D162: APM-FEP05GMK | E162: 4716062500 | F162: Serwosilnik, APM-FE, 130mm, 2.86Nm, 1500obr/min, 450w, bez hamulca, Serial Enc. 19Bit MT, APM-FEP05GMK, 4716062500 | G162: □130, 450w, 2.86Nm, Serial Enc.19 Bit MT, [L7□B010U] | H162: 1500 | I162: 400 | J162: 130mm | K162: 450w | L162: 2.86Nm | M162: Serial Enc. 19Bit MT | N162: bez hamulca | O162: [L7□B010U] | W162: =VLOOKUP(E162,TabelaCen!$B$2:$C$988,2,FALSE) -> 637.57 | X162: 446.299
A163: SERWOSILNIK | B163: APM-FE | C163: 130 E Flange | D163: APM-FEP09GMK | E163: 4716062600 | F163: Serwosilnik, APM-FE, 130mm, 5.41Nm, 1500obr/min, 850w, bez hamulca, Serial Enc. 19Bit MT, APM-FEP09GMK, 4716062600 | G163: □130, 850w, 5.41Nm, Serial Enc.19 Bit MT, [L7□B010U] | H163: 1500 | I163: 400 | J163: 130mm | K163: 850w | L163: 5.41Nm | M163: Serial Enc. 19Bit MT | N163: bez hamulca | O163: [L7□B010U] | W163: =VLOOKUP(E163,TabelaCen!$B$2:$C$988,2,FALSE) -> 695.25 | X163: 486.675
A164: SERWOSILNIK | B164: APM-FE | C164: 130 E Flange | D164: APM-FEP13GMK | E164: 4716062700 | F164: Serwosilnik, APM-FE, 130mm, 8.28Nm, 1500obr/min, 1.3Kw, bez hamulca, Serial Enc. 19Bit MT, APM-FEP13GMK, 4716062700 | G164: □130, 1.3Kw, 8.28Nm, Serial Enc.19 Bit MT, [L7□B020U] | H164: 1500 | I164: 400 | J164: 130mm | K164: 1.3Kw | L164: 8.28Nm | M164: Serial Enc. 19Bit MT | N164: bez hamulca | O164: [L7□B020U] | W164: =VLOOKUP(E164,TabelaCen!$B$2:$C$988,2,FALSE) -> 753.96 | X164: 527.772
A165: SERWOSILNIK | B165: APM-FE | C165: 130 E Flange | D165: APM-FEP17GMK | E165: 4716062800 | F165: Serwosilnik, APM-FE, 130mm, 10.82Nm, 1500obr/min, 1.7Kw, bez hamulca, Serial Enc. 19Bit MT, APM-FEP17GMK, 4716062800 | G165: □130, 1.7Kw, 10.82Nm, Serial Enc.19 Bit MT, [L7□B020U] | H165: 1500 | I165: 400 | J165: 130mm | K165: 1.7Kw | L165: 10.82Nm | M165: Serial Enc. 19Bit MT | N165: bez hamulca | O165: [L7□B020U] | W165: =VLOOKUP(E165,TabelaCen!$B$2:$C$988,2,FALSE) -> 785.89 | X165: 550.123
A166: SERWOSILNIK | B166: APM-FE | C166: 130 E Flange | D166: APM-FEP05GMK2 | E166: 4716067200 | F166: Serwosilnik, APM-FE, 130mm, 2.86Nm, 1500obr/min, 450w, z hamulcem, Serial Enc. 19Bit MT, APM-FEP05GMK2, 4716067200 | G166: □130, 450w, 2.86Nm, Serial Enc.19 Bit MT, Brake, [L7□B010U] | H166: 1500 | I166: 400 | J166: 130mm | K166: 450w | L166: 2.86Nm | M166: Serial Enc. 19Bit MT | N166: z hamulcem | O166: [L7□B010U] | W166: =VLOOKUP(E166,TabelaCen!$B$2:$C$988,2,FALSE) -> 859.02 | X166: 601.314
A167: SERWOSILNIK | B167: APM-FE | C167: 130 E Flange | D167: APM-FEP09GMK2 | E167: 4716067300 | F167: Serwosilnik, APM-FE, 130mm, 5.41Nm, 1500obr/min, 850w, z hamulcem, Serial Enc. 19Bit MT, APM-FEP09GMK2, 4716067300 | G167: □130, 850w, 5.41Nm, Serial Enc.19 Bit MT, Brake, [L7□B010U] | H167: 1500 | I167: 400 | J167: 130mm | K167: 850w | L167: 5.41Nm | M167: Serial Enc. 19Bit MT | N167: z hamulcem | O167: [L7□B010U] | W167: =VLOOKUP(E167,TabelaCen!$B$2:$C$988,2,FALSE) -> 915.67 | X167: 640.969
A168: SERWOSILNIK | B168: APM-FE | C168: 130 E Flange | D168: APM-FEP13GMK2 | E168: 4716067400 | F168: Serwosilnik, APM-FE, 130mm, 8.28Nm, 1500obr/min, 1.3Kw, z hamulcem, Serial Enc. 19Bit MT, APM-FEP13GMK2, 4716067400 | G168: □130, 1.3Kw, 8.28Nm, Serial Enc.19 Bit MT, Brake, [L7□B020U] | H168: 1500 | I168: 400 | J168: 130mm | K168: 1.3Kw | L168: 8.28Nm | M168: Serial Enc. 19Bit MT | N168: z hamulcem | O168: [L7□B020U] | W168: =VLOOKUP(E168,TabelaCen!$B$2:$C$988,2,FALSE) -> 973.35 | X168: 681.345
A169: SERWOSILNIK | B169: APM-FE | C169: 130 E Flange | D169: APM-FEP17GMK2 | E169: 4716067500 | F169: Serwosilnik, APM-FE, 130mm, 10.82Nm, 1500obr/min, 1.7Kw, z hamulcem, Serial Enc. 19Bit MT, APM-FEP17GMK2, 4716067500 | G169: □130, 1.7Kw, 10.82Nm, Serial Enc.19 Bit MT, Brake, [L7□B020U] | H169: 1500 | I169: 400 | J169: 130mm | K169: 1.7Kw | L169: 10.82Nm | M169: Serial Enc. 19Bit MT | N169: z hamulcem | O169: [L7□B020U] | W169: =VLOOKUP(E169,TabelaCen!$B$2:$C$988,2,FALSE) -> 1004.25 | X169: 702.975
A170: SERWOSILNIK | B170: APM-FE | C170: 130 E Flange | D170: APM-FEP03MMK | E170: 4716064100 | F170: Serwosilnik, APM-FE, 130mm, 2.86Nm, 1000obr/min, 300w, bez hamulca, Serial Enc. 19Bit MT, APM-FEP03MMK, 4716064100 | G170: □130, 300w, 2.86Nm, Serial Enc.19 Bit MT, [L7□B010U] | H170: 1000 | I170: 400 | J170: 130mm | K170: 300w | L170: 2.86Nm | M170: Serial Enc. 19Bit MT | N170: bez hamulca | O170: [L7□B010U] | W170: =VLOOKUP(E170,TabelaCen!$B$2:$C$988,2,FALSE) -> 637.57 | X170: 446.299
A171: SERWOSILNIK | B171: APM-FE | C171: 130 E Flange | D171: APM-FEP06MMK | E171: 4716064200 | F171: Serwosilnik, APM-FE, 130mm, 5.73Nm, 1000obr/min, 600w, bez hamulca, Serial Enc. 19Bit MT, APM-FEP06MMK, 4716064200 | G171: □130, 600w, 5.73Nm, Serial Enc.19 Bit MT, [L7□B010U] | H171: 1000 | I171: 400 | J171: 130mm | K171: 600w | L171: 5.73Nm | M171: Serial Enc. 19Bit MT | N171: bez hamulca | O171: [L7□B010U] | W171: =VLOOKUP(E171,TabelaCen!$B$2:$C$988,2,FALSE) -> 697.31 | X171: 488.117
A172: SERWOSILNIK | B172: APM-FE | C172: 130 E Flange | D172: APM-FEP09MMK | E172: 4716064300 | F172: Serwosilnik, APM-FE, 130mm, 8.59Nm, 1000obr/min, 900w, bez hamulca, Serial Enc. 19Bit MT, APM-FEP09MMK, 4716064300 | G172: □130, 900w, 8.59Nm, Serial Enc.19 Bit MT, [L7□B010U] | H172: 1000 | I172: 400 | J172: 130mm | K172: 900w | L172: 8.59Nm | M172: Serial Enc. 19Bit MT | N172: bez hamulca | O172: [L7□B010U] | W172: =VLOOKUP(E172,TabelaCen!$B$2:$C$988,2,FALSE) -> 757.05 | X172: 529.935
A173: SERWOSILNIK | B173: APM-FE | C173: 130 E Flange | D173: APM-FEP12MMK | E173: 4716064400 | F173: Serwosilnik, APM-FE, 130mm, 11.46Nm, 1000obr/min, 1.2Kw, bez hamulca, Serial Enc. 19Bit MT, APM-FEP12MMK, 4716064400 | G173: □130, 1.2Kw, 11.46Nm, Serial Enc.19 Bit MT, [L7□B020U] | H173: 1000 | I173: 400 | J173: 130mm | K173: 1.2Kw | L173: 11.46Nm | M173: Serial Enc. 19Bit MT | N173: bez hamulca | O173: [L7□B020U] | W173: =VLOOKUP(E173,TabelaCen!$B$2:$C$988,2,FALSE) -> 784.86 | X173: 549.402
A174: SERWOSILNIK | B174: APM-FE | C174: 130 E Flange | D174: APM-FEP03MMK2 | E174: 4716068500 | F174: Serwosilnik, APM-FE, 130mm, 2.86Nm, 1000obr/min, 300w, z hamulcem, Serial Enc. 19Bit MT, APM-FEP03MMK2, 4716068500 | G174: □130, 300w, 2.86Nm, Serial Enc.19 Bit MT, Brake, [L7□B010U] | H174: 1000 | I174: 400 | J174: 130mm | K174: 300w | L174: 2.86Nm | M174: Serial Enc. 19Bit MT | N174: z hamulcem | O174: [L7□B010U] | W174: =VLOOKUP(E174,TabelaCen!$B$2:$C$988,2,FALSE) -> 859.02 | X174: 601.314
A175: SERWOSILNIK | B175: APM-FE | C175: 130 E Flange | D175: APM-FEP06MMK2 | E175: 4716068600 | F175: Serwosilnik, APM-FE, 130mm, 5.73Nm, 1000obr/min, 600w, z hamulcem, Serial Enc. 19Bit MT, APM-FEP06MMK2, 4716068600 | G175: □130, 600w, 5.73Nm, Serial Enc.19 Bit MT, Brake, [L7□B010U] | H175: 1000 | I175: 400 | J175: 130mm | K175: 600w | L175: 5.73Nm | M175: Serial Enc. 19Bit MT | N175: z hamulcem | O175: [L7□B010U] | W175: =VLOOKUP(E175,TabelaCen!$B$2:$C$988,2,FALSE) -> 917.73 | X175: 642.411
A176: SERWOSILNIK | B176: APM-FE | C176: 130 E Flange | D176: APM-FEP09MMK2 | E176: 4716068700 | F176: Serwosilnik, APM-FE, 130mm, 8.59Nm, 1000obr/min, 900w, z hamulcem, Serial Enc. 19Bit MT, APM-FEP09MMK2, 4716068700 | G176: □130, 900w, 8.59Nm, Serial Enc.19 Bit MT, Brake, [L7□B010U] | H176: 1000 | I176: 400 | J176: 130mm | K176: 900w | L176: 8.59Nm | M176: Serial Enc. 19Bit MT | N176: z hamulcem | O176: [L7□B010U] | W176: =VLOOKUP(E176,TabelaCen!$B$2:$C$988,2,FALSE) -> 976.44 | X176: 683.508
A177: SERWOSILNIK | B177: APM-FE | C177: 130 E Flange | D177: APM-FEP12MMK2 | E177: 4716068800 | F177: Serwosilnik, APM-FE, 130mm, 11.46Nm, 1000obr/min, 1.2Kw, z hamulcem, Serial Enc. 19Bit MT, APM-FEP12MMK2, 4716068800 | G177: □130, 1.2Kw, 11.46Nm, Serial Enc.19 Bit MT, Brake, [L7□B020U] | H177: 1000 | I177: 400 | J177: 130mm | K177: 1.2Kw | L177: 11.46Nm | M177: Serial Enc. 19Bit MT | N177: z hamulcem | O177: [L7□B020U] | W177: =VLOOKUP(E177,TabelaCen!$B$2:$C$988,2,FALSE) -> 1003.22 | X177: 702.254
A178: SERWOSILNIK | B178: APM-FF | C178: 180 F Flange | D178: APM-FF30AMK | E178: 4716019700 | F178: Serwosilnik, APM-FF, 180mm, 9.55Nm, 3000obr/min, 3Kw, bez hamulca, Serial Enc. 19Bit MT, APM-FF30AMK, 4716019700 | G178: □180, 3Kw, 9.55Nm, Serial Enc.19 Bit MT, [L7□A035U] | H178: 3000 | I178: 200 | J178: 180mm | K178: 3Kw | L178: 9.55Nm | M178: Serial Enc. 19Bit MT | N178: bez hamulca | O178: [L7□A035U] | W178: =VLOOKUP(E178,TabelaCen!$B$2:$C$988,2,FALSE) -> 913.61 | X178: 639.527
A179: SERWOSILNIK | B179: APM-FF | C179: 180 F Flange | D179: APM-FF50AMK | E179: 4716031100 | F179: Serwosilnik, APM-FF, 180mm, 15.91Nm, 3000obr/min, 5Kw, bez hamulca, Serial Enc. 19Bit MT, APM-FF50AMK, 4716031100 | G179: □180, 5Kw, 15.91Nm, Serial Enc.19 Bit MT, [L7□A050U] | H179: 3000 | I179: 200 | J179: 180mm | K179: 5Kw | L179: 15.91Nm | M179: Serial Enc. 19Bit MT | N179: bez hamulca | O179: [L7□A050U] | W179: =VLOOKUP(E179,TabelaCen!$B$2:$C$988,2,FALSE) -> 1078.41 | X179: 754.887
A180: SERWOSILNIK | B180: APM-FF | C180: 180 F Flange | D180: APM-FF30AMK2 | E180: 4716023900 | F180: Serwosilnik, APM-FF, 180mm, 9.55Nm, 3000obr/min, 3Kw, z hamulcem, Serial Enc. 19Bit MT, APM-FF30AMK2, 4716023900 | G180: □180, 3Kw, 9.55Nm, Serial Enc.19 Bit MT, Brake, [L7□A035U] | H180: 3000 | I180: 200 | J180: 180mm | K180: 3Kw | L180: 9.55Nm | M180: Serial Enc. 19Bit MT | N180: z hamulcem | O180: [L7□A035U] | W180: =VLOOKUP(E180,TabelaCen!$B$2:$C$988,2,FALSE) -> 1245.27 | X180: 871.689
A181: SERWOSILNIK | B181: APM-FF | C181: 180 F Flange | D181: APM-FF50AMK2 | E181: 4716029700 | F181: Serwosilnik, APM-FF, 180mm, 15.91Nm, 3000obr/min, 5Kw, z hamulcem, Serial Enc. 19Bit MT, APM-FF50AMK2, 4716029700 | G181: □180, 5Kw, 15.91Nm, Serial Enc.19 Bit MT, Brake, [L7□A050U] | H181: 3000 | I181: 200 | J181: 180mm | K181: 5Kw | L181: 15.91Nm | M181: Serial Enc. 19Bit MT | N181: z hamulcem | O181: [L7□A050U] | W181: =VLOOKUP(E181,TabelaCen!$B$2:$C$988,2,FALSE) -> 1416.25 | X181: 991.375
A182: SERWOSILNIK | B182: APM-FF | C182: 180 F Flange | D182: APM-FF22DMK | E182: 4716020200 | F182: Serwosilnik, APM-FF, 180mm, 10.50Nm, 2000obr/min, 2.2Kw, bez hamulca, Serial Enc. 19Bit MT, APM-FF22DMK, 4716020200 | G182: □180, 2.2Kw, 10.5Nm, Serial Enc.19 Bit MT, [L7□A020U] | H182: 2000 | I182: 200 | J182: 180mm | K182: 2.2Kw | L182: 10.50Nm | M182: Serial Enc. 19Bit MT | N182: bez hamulca | O182: [L7□A020U] | W182: =VLOOKUP(E182,TabelaCen!$B$2:$C$988,2,FALSE) -> 932.15 | X182: 652.505
A183: SERWOSILNIK | B183: APM-FF | C183: 180 F Flange | D183: APM-FF35DMK | E183: 4716020300 | F183: Serwosilnik, APM-FF, 180mm, 16.70Nm, 2000obr/min, 3.5Kw, bez hamulca, Serial Enc. 19Bit MT, APM-FF35DMK, 4716020300 | G183: □180, 3.5Kw, 16.7Nm, Serial Enc.19 Bit MT, [L7□A035U] | H183: 2000 | I183: 200 | J183: 180mm | K183: 3.5Kw | L183: 16.70Nm | M183: Serial Enc. 19Bit MT | N183: bez hamulca | O183: [L7□A035U] | W183: =VLOOKUP(E183,TabelaCen!$B$2:$C$988,2,FALSE) -> 1082.53 | X183: 757.771
A184: SERWOSILNIK | B184: APM-FF | C184: 180 F Flange | D184: APM-FF55DMK | E184: 4716031200 | F184: Serwosilnik, APM-FF, 180mm, 26.25Nm, 2000obr/min, 5.5Kw, bez hamulca, Serial Enc. 19Bit MT, APM-FF55DMK, 4716031200 | G184: □180, 5.5Kw, 26.25Nm, Serial Enc.19 Bit MT, [L7□A050U] | H184: 2000 | I184: 200 | J184: 180mm | K184: 5.5Kw | L184: 26.25Nm | M184: Serial Enc. 19Bit MT | N184: bez hamulca | O184: [L7□A050U] | W184: =VLOOKUP(E184,TabelaCen!$B$2:$C$988,2,FALSE) -> 1295.74 | X184: 907.018
A185: SERWOSILNIK | B185: APM-FF | C185: 180 F Flange | D185: APM-FF22DMK2 | E185: 4716024400 | F185: Serwosilnik, APM-FF, 180mm, 16.70Nm, 2000obr/min, 2.2Kw, z hamulcem, Serial Enc. 19Bit MT, APM-FF22DMK2, 4716024400 | G185: □180, 2.2Kw, 10.5Nm, Serial Enc.19 Bit MT, Brake, [L7□A020U] | H185: 2000 | I185: 200 | J185: 180mm | K185: 2.2Kw | L185: 16.70Nm | M185: Serial Enc. 19Bit MT | N185: z hamulcem | O185: [L7□A020U] | W185: =VLOOKUP(E185,TabelaCen!$B$2:$C$988,2,FALSE) -> 1246.3 | X185: 872.41
A186: SERWOSILNIK | B186: APM-FF | C186: 180 F Flange | D186: APM-FF35DMK2 | E186: 4716024500 | F186: Serwosilnik, APM-FF, 180mm, 16.70Nm, 2000obr/min, 3.5Kw, z hamulcem, Serial Enc. 19Bit MT, APM-FF35DMK2, 4716024500 | G186: □180, 3.5Kw, 16.7Nm, Serial Enc.19 Bit MT, Brake, [L7□A035U] | H186: 2000 | I186: 200 | J186: 180mm | K186: 3.5Kw | L186: 16.70Nm | M186: Serial Enc. 19Bit MT | N186: z hamulcem | O186: [L7□A035U] | W186: =VLOOKUP(E186,TabelaCen!$B$2:$C$988,2,FALSE) -> 1401.83 | X186: 981.281
A187: SERWOSILNIK | B187: APM-FF | C187: 180 F Flange | D187: APM-FF55DMK2 | E187: 4716029800 | F187: =CONCATENATE("Serwosilnik",", ",B187,", ",J187,", ",L187,", ",H187,"obr/min, ",K187,", ",N187,", ",M187,", ",D187,", ",E187) -> Serwosilnik, APM-FF, 180mm, 26.25Nm, 2000obr/min, 5.5Kw, z hamulcem, Serial Enc. 19Bit MT, APM-FF55DMK2, 4716029800 | G187: □180, 5.5Kw, 26.25Nm, Serial Enc.19 Bit MT, Brake, [L7□A050U] | H187: 2000 | I187: 200 | J187: 180mm | K187: 5.5Kw | L187: 26.25Nm | M187: Serial Enc. 19Bit MT | N187: z hamulcem | O187: [L7□A050U] | W187: =VLOOKUP(E187,TabelaCen!$B$2:$C$988,2,FALSE) -> 1632.55 | X187: =W187-(W187*$X$55) -> 1142.785
A188: SERWOSILNIK | B188: APM-FF | C188: 180 F Flange | D188: APM-FF20GMK | E188: 4716021000 | F188: Serwosilnik, APM-FF, 180mm, 11.45Nm, 1500obr/min, 1.8Kw, bez hamulca, Serial Enc. 19Bit MT, APM-FF20GMK, 4716021000 | G188: □180, 1.8Kw, 11.45Nm, Serial Enc.19 Bit MT, [L7□A020U] | H188: 1500 | I188: 200 | J188: 180mm | K188: 1.8Kw | L188: 11.45Nm | M188: Serial Enc. 19Bit MT | N188: bez hamulca | O188: [L7□A020U] | W188: =VLOOKUP(E188,TabelaCen!$B$2:$C$988,2,FALSE) -> 920.82 | X188: 644.574
A189: SERWOSILNIK | B189: APM-FF | C189: 180 F Flange | D189: APM-FF30GMK | E189: 4716021100 | F189: Serwosilnik, APM-FF, 180mm, 18.46Nm, 1500obr/min, 2.9Kw, bez hamulca, Serial Enc. 19Bit MT, APM-FF30GMK, 4716021100 | G189: □180, 2.9Kw, 18.46Nm, Serial Enc.19 Bit MT, [L7□A035U] | H189: 1500 | I189: 200 | J189: 180mm | K189: 2.9Kw | L189: 18.46Nm | M189: Serial Enc. 19Bit MT | N189: bez hamulca | O189: [L7□A035U] | W189: =VLOOKUP(E189,TabelaCen!$B$2:$C$988,2,FALSE) -> 1058.84 | X189: 741.188
A190: SERWOSILNIK | B190: APM-FF | C190: 180 F Flange | D190: APM-FF44GMK | E190: 4716031400 | F190: Serwosilnik, APM-FF, 180mm, 28.00Nm, 1500obr/min, 4.4Kw, bez hamulca, Serial Enc. 19Bit MT, APM-FF44GMK, 4716031400 | G190: □180, 4.4Kw, 28Nm, Serial Enc.19 Bit MT, [L7□A050U] | H190: 1500 | I190: 200 | J190: 180mm | K190: 4.4Kw | L190: 28.00Nm | M190: Serial Enc. 19Bit MT | N190: bez hamulca | O190: [L7□A050U] | W190: =VLOOKUP(E190,TabelaCen!$B$2:$C$988,2,FALSE) -> 1295.74 | X190: 907.018
A191: SERWOSILNIK | B191: APM-FF | C191: 180 F Flange | D191: APM-FF20GMK2 | E191: 4716025200 | F191: Serwosilnik, APM-FF, 180mm, 11.45Nm, 1500obr/min, 1.8Kw, z hamulcem, Serial Enc. 19Bit MT, APM-FF20GMK2, 4716025200 | G191: □180, 1.8Kw, 11.45Nm, Serial Enc.19 Bit MT, Brake, [L7□A020U] | H191: 1500 | I191: 200 | J191: 180mm | K191: 1.8Kw | L191: 11.45Nm | M191: Serial Enc. 19Bit MT | N191: z hamulcem | O191: [L7□A020U] | W191: =VLOOKUP(E191,TabelaCen!$B$2:$C$988,2,FALSE) -> 1251.45 | X191: 876.015
A192: SERWOSILNIK | B192: APM-FF | C192: 180 F Flange | D192: APM-FF30GMK2 | E192: 4716025300 | F192: Serwosilnik, APM-FF, 180mm, 18.46Nm, 1500obr/min, 2.9Kw, z hamulcem, Serial Enc. 19Bit MT, APM-FF30GMK2, 4716025300 | G192: □180, 2.9Kw, 18.46Nm, Serial Enc.19 Bit MT, Brake, [L7□A035U] | H192: 1500 | I192: 200 | J192: 180mm | K192: 2.9Kw | L192: 18.46Nm | M192: Serial Enc. 19Bit MT | N192: z hamulcem | O192: [L7□A035U] | W192: =VLOOKUP(E192,TabelaCen!$B$2:$C$988,2,FALSE) -> 1403.89 | X192: 982.723
A193: SERWOSILNIK | B193: APM-FF | C193: 180 F Flange | D193: APM-FF44GMK2 | E193: 4716030000 | F193: Serwosilnik, APM-FF, 180mm, 28.00Nm, 1500obr/min, 4.4Kw, z hamulcem, Serial Enc. 19Bit MT, APM-FF44GMK2, 4716030000 | G193: □180, 4.4Kw, 28Nm, Serial Enc.19 Bit MT, Brake, [L7□A050U] | H193: 1500 | I193: 200 | J193: 180mm | K193: 4.4Kw | L193: 28.00Nm | M193: Serial Enc. 19Bit MT | N193: z hamulcem | O193: [L7□A050U] | W193: =VLOOKUP(E193,TabelaCen!$B$2:$C$988,2,FALSE) -> 1632.55 | X193: 1142.785
A194: SERWOSILNIK | B194: APM-FF | C194: 180 F Flange | D194: APM-FF12MMK | E194: 4716021800 | F194: Serwosilnik, APM-FF, 180mm, 11.46Nm, 1000obr/min, 1.2Kw, bez hamulca, Serial Enc. 19Bit MT, APM-FF12MMK, 4716021800 | G194: □180, 1.2Kw, 11.46Nm, Serial Enc.19 Bit MT, [L7□A020U] | H194: 1000 | I194: 200 | J194: 180mm | K194: 1.2Kw | L194: 11.46Nm | M194: Serial Enc. 19Bit MT | N194: bez hamulca | O194: [L7□A020U] | W194: =VLOOKUP(E194,TabelaCen!$B$2:$C$988,2,FALSE) -> 919.79 | X194: 643.853
A195: SERWOSILNIK | B195: APM-FF | C195: 180 F Flange | D195: APM-FF20MMK | E195: 4716021900 | F195: Serwosilnik, APM-FF, 180mm, 19.09Nm, 1000obr/min, 2Kw, bez hamulca, Serial Enc. 19Bit MT, APM-FF20MMK, 4716021900 | G195: □180, 2Kw, 19.09Nm, Serial Enc.19 Bit MT, [L7□A020U] | H195: 1000 | I195: 200 | J195: 180mm | K195: 2Kw | L195: 19.09Nm | M195: Serial Enc. 19Bit MT | N195: bez hamulca | O195: [L7□A020U] | W195: =VLOOKUP(E195,TabelaCen!$B$2:$C$988,2,FALSE) -> 1073.26 | X195: 751.282
A196: SERWOSILNIK | B196: APM-FF | C196: 180 F Flange | D196: APM-FF30MMK | E196: 4716022000 | F196: Serwosilnik, APM-FF, 180mm, 28.64Nm, 1000obr/min, 3Kw, bez hamulca, Serial Enc. 19Bit MT, APM-FF30MMK, 4716022000 | G196: □180, 3Kw, 28.64Nm, Serial Enc.19 Bit MT, [L7□A035U] | H196: 1000 | I196: 200 | J196: 180mm | K196: 3Kw | L196: 28.64Nm | M196: Serial Enc. 19Bit MT | N196: bez hamulca | O196: [L7□A035U] | W196: =VLOOKUP(E196,TabelaCen!$B$2:$C$988,2,FALSE) -> 1290.59 | X196: 903.413
A197: SERWOSILNIK | B197: APM-FF | C197: 180 F Flange | D197: APM-FF44MMK | E197: 4716031600 | F197: Serwosilnik, APM-FF, 180mm, 42.02Nm, 1000obr/min, 4.4Kw, bez hamulca, Serial Enc. 19Bit MT, APM-FF44MMK, 4716031600 | G197: □180, 4.4Kw, 42.02Nm, Serial Enc.19 Bit MT, [L7□A050U] | H197: 1000 | I197: 200 | J197: 180mm | K197: 4.4Kw | L197: 42.02Nm | M197: Serial Enc. 19Bit MT | N197: bez hamulca | O197: [L7□A050U] | W197: =VLOOKUP(E197,TabelaCen!$B$2:$C$988,2,FALSE) -> 1534.7 | X197: 1074.29
A198: SERWOSILNIK | B198: APM-FF | C198: 180 F Flange | D198: APM-FF12MMK2 | E198: 4716025900 | F198: Serwosilnik, APM-FF, 180mm, 11.46Nm, 1000obr/min, 1.2Kw, z hamulcem, Serial Enc. 19Bit MT, APM-FF12MMK2, 4716025900 | G198: □180, 1.2Kw, 11.46Nm, Serial Enc.19 Bit MT, Brake, [L7□A020U] | H198: 1000 | I198: 200 | J198: 180mm | K198: 1.2Kw | L198: 11.46Nm | M198: Serial Enc. 19Bit MT | N198: z hamulcem | O198: [L7□A020U] | W198: =VLOOKUP(E198,TabelaCen!$B$2:$C$988,2,FALSE) -> 1251.45 | X198: 876.015
A199: SERWOSILNIK | B199: APM-FF | C199: 180 F Flange | D199: APM-FF20MMK2 | E199: 4716026000 | F199: Serwosilnik, APM-FF, 180mm, 19.09Nm, 1000obr/min, 2Kw, z hamulcem, Serial Enc. 19Bit MT, APM-FF20MMK2, 4716026000 | G199: □180, 2Kw, 19.09Nm, Serial Enc.19 Bit MT, Brake, [L7□A020U] | H199: 1000 | I199: 200 | J199: 180mm | K199: 2Kw | L199: 19.09Nm | M199: Serial Enc. 19Bit MT | N199: z hamulcem | O199: [L7□A020U] | W199: =VLOOKUP(E199,TabelaCen!$B$2:$C$988,2,FALSE) -> 1409.04 | X199: 986.328
A200: SERWOSILNIK | B200: APM-FF | C200: 180 F Flange | D200: APM-FF30MMK2 | E200: 4716026100 | F200: Serwosilnik, APM-FF, 180mm, 28.64Nm, 1000obr/min, 3Kw, z hamulcem, Serial Enc. 19Bit MT, APM-FF30MMK2, 4716026100 | G200: □180, 3Kw, 28.64Nm, Serial Enc.19 Bit MT, Brake, [L7□A035U] | H200: 1000 | I200: 200 | J200: 180mm | K200: 3Kw | L200: 28.64Nm | M200: Serial Enc. 19Bit MT | N200: z hamulcem | O200: [L7□A035U] | W200: =VLOOKUP(E200,TabelaCen!$B$2:$C$988,2,FALSE) -> 1626.37 | X200: 1138.459
A201: SERWOSILNIK | B201: APM-FF | C201: 180 F Flange | D201: APM-FF44MMK2 | E201: 4716030200 | F201: Serwosilnik, APM-FF, 180mm, 42.02Nm, 1000obr/min, 4.4Kw, z hamulcem, Serial Enc. 19Bit MT, APM-FF44MMK2, 4716030200 | G201: □180, 4.4Kw, 42.02Nm, Serial Enc.19 Bit MT, Brake, [L7□A050U] | H201: 1000 | I201: 200 | J201: 180mm | K201: 4.4Kw | L201: 42.02Nm | M201: Serial Enc. 19Bit MT | N201: z hamulcem | O201: [L7□A050U] | W201: =VLOOKUP(E201,TabelaCen!$B$2:$C$988,2,FALSE) -> 1868.42 | X201: 1307.894
A202: SERWOSILNIK | B202: APM-FF | C202: 180 F Flange | D202: APM-FFP30AMK | E202: 4716061000 | F202: Serwosilnik, APM-FF, 180mm, 9.55Nm, 3000obr/min, 3Kw, bez hamulca, Serial Enc. 19Bit MT, APM-FFP30AMK, 4716061000 | G202: □180, 3Kw, 9.55Nm, Serial Enc.19 Bit MT, [L7□B035U] | H202: 3000 | I202: 400 | J202: 180mm | K202: 3Kw | L202: 9.55Nm | M202: Serial Enc. 19Bit MT | N202: bez hamulca | O202: [L7□B035U] | W202: =VLOOKUP(E202,TabelaCen!$B$2:$C$988,2,FALSE) -> 923.91 | X202: 646.737
A203: SERWOSILNIK | B203: APM-FF | C203: 180 F Flange | D203: APM-FFP50AMK | E203: 4716061100 | F203: Serwosilnik, APM-FF, 180mm, 15.92Nm, 3000obr/min, 5Kw, bez hamulca, Serial Enc. 19Bit MT, APM-FFP50AMK, 4716061100 | G203: □180, 5Kw, 15.92Nm, Serial Enc.19 Bit MT, [L7□B050U] | H203: 3000 | I203: 400 | J203: 180mm | K203: 5Kw | L203: 15.92Nm | M203: Serial Enc. 19Bit MT | N203: bez hamulca | O203: [L7□B050U] | W203: =VLOOKUP(E203,TabelaCen!$B$2:$C$988,2,FALSE) -> 1078.41 | X203: 754.887
A204: SERWOSILNIK | B204: APM-FF | C204: 180 F Flange | D204: APM-FFP30AMK2 | E204: 4716065800 | F204: Serwosilnik, APM-FF, 180mm, 9.55Nm, 3000obr/min, 3Kw, z hamulcem, Serial Enc. 19Bit MT, APM-FFP30AMK2, 4716065800 | G204: □180, 3Kw, 9.55Nm, Serial Enc.19 Bit MT, Brake, [L7□B035U] | H204: 3000 | I204: 400 | J204: 180mm | K204: 3Kw | L204: 9.55Nm | M204: Serial Enc. 19Bit MT | N204: z hamulcem | O204: [L7□B035U] | W204: =VLOOKUP(E204,TabelaCen!$B$2:$C$988,2,FALSE) -> 1254.54 | X204: 878.178
A205: SERWOSILNIK | B205: APM-FF | C205: 180 F Flange | D205: APM-FFP50AMK2 | E205: 4716065900 | F205: Serwosilnik, APM-FF, 180mm, 15.92Nm, 3000obr/min, 5Kw, z hamulcem, Serial Enc. 19Bit MT, APM-FFP50AMK2, 4716065900 | G205: □180, 5Kw, 15.92Nm, Serial Enc.19 Bit MT, Brake, [L7□B050U] | H205: 3000 | I205: 400 | J205: 180mm | K205: 5Kw | L205: 15.92Nm | M205: Serial Enc. 19Bit MT | N205: z hamulcem | O205: [L7□B050U] | W205: =VLOOKUP(E205,TabelaCen!$B$2:$C$988,2,FALSE) -> 1415.22 | X205: 990.654
A206: SERWOSILNIK | B206: APM-FF | C206: 180 F Flange | D206: APM-FFP22DMK | E206: 4716061600 | F206: Serwosilnik, APM-FF, 180mm, 10.50Nm, 2000obr/min, 2.2Kw, bez hamulca, Serial Enc. 19Bit MT, APM-FFP22DMK, 4716061600 | G206: □180, 2.2Kw, 10.5Nm, Serial Enc.19 Bit MT, [L7□B020U] | H206: 2000 | I206: 400 | J206: 180mm | K206: 2.2Kw | L206: 10.50Nm | M206: Serial Enc. 19Bit MT | N206: bez hamulca | O206: [L7□B020U] | W206: =VLOOKUP(E206,TabelaCen!$B$2:$C$988,2,FALSE) -> 933.18 | X206: 653.226
A207: SERWOSILNIK | B207: APM-FF | C207: 180 F Flange | D207: APM-FFP35DMK | E207: 4716061700 | F207: Serwosilnik, APM-FF, 180mm, 16.71Nm, 2000obr/min, 3.5Kw, bez hamulca, Serial Enc. 19Bit MT, APM-FFP35DMK, 4716061700 | G207: □180, 3.5Kw, 16.71Nm, Serial Enc.19 Bit MT, [L7□B035U] | H207: 2000 | I207: 400 | J207: 180mm | K207: 3.5Kw | L207: 16.71Nm | M207: Serial Enc. 19Bit MT | N207: bez hamulca | O207: [L7□B035U] | W207: =VLOOKUP(E207,TabelaCen!$B$2:$C$988,2,FALSE) -> 1081.5 | X207: 757.05
A208: SERWOSILNIK | B208: APM-FF | C208: 180 F Flange | D208: APM-FFP55DMK | E208: 4716061800 | F208: Serwosilnik, APM-FF, 180mm, 26.26Nm, 2000obr/min, 5.5Kw, bez hamulca, Serial Enc. 19Bit MT, APM-FFP55DMK, 4716061800 | G208: □180, 5.5Kw, 26.26Nm, Serial Enc.19 Bit MT, [L7□B050U] | H208: 2000 | I208: 400 | J208: 180mm | K208: 5.5Kw | L208: 26.26Nm | M208: Serial Enc. 19Bit MT | N208: bez hamulca | O208: [L7□B050U] | W208: =VLOOKUP(E208,TabelaCen!$B$2:$C$988,2,FALSE) -> 1290.59 | X208: 903.413
A209: SERWOSILNIK | B209: APM-FF | C209: 180 F Flange | D209: APM-FFP75DMK | E209: 4716061900 | F209: Serwosilnik, APM-FF, 180mm, 35.81Nm, 2000obr/min, 7.5Kw, bez hamulca, Serial Enc. 19Bit MT, APM-FFP75DMK, 4716061900 | G209: □180, 7.5Kw, 35.81Nm, Serial Enc.19 Bit MT, [L7□B075U] | H209: 2000 | I209: 400 | J209: 180mm | K209: 7.5Kw | L209: 35.81Nm | M209: Serial Enc. 19Bit MT | N209: bez hamulca | O209: [L7□B075U] | W209: =VLOOKUP(E209,TabelaCen!$B$2:$C$988,2,FALSE) -> 1578.99 | X209: 1105.293
A210: SERWOSILNIK | B210: APM-FF | C210: 180 F Flange | D210: APM-FFP22DMK2 | E210: 4716066400 | F210: Serwosilnik, APM-FF, 180mm, 10.50Nm, 2000obr/min, 2.2Kw, z hamulcem, Serial Enc. 19Bit MT, APM-FFP22DMK2, 4716066400 | G210: □180, 2.2Kw, 10.5Nm, Serial Enc.19 Bit MT, Brake, [L7□B020U] | H210: 2000 | I210: 400 | J210: 180mm | K210: 2.2Kw | L210: 10.50Nm | M210: Serial Enc. 19Bit MT | N210: z hamulcem | O210: [L7□B020U] | W210: =VLOOKUP(E210,TabelaCen!$B$2:$C$988,2,FALSE) -> 1264.84 | X210: 885.388
A211: SERWOSILNIK | B211: APM-FF | C211: 180 F Flange | D211: APM-FFP35DMK2 | E211: 4716066500 | F211: Serwosilnik, APM-FF, 180mm, 16.71Nm, 2000obr/min, 3.5Kw, z hamulcem, Serial Enc. 19Bit MT, APM-FFP35DMK2, 4716066500 | G211: □180, 3.5Kw, 16.71Nm, Serial Enc.19 Bit MT, Brake, [L7□B035U] | H211: 2000 | I211: 400 | J211: 180mm | K211: 3.5Kw | L211: 16.71Nm | M211: Serial Enc. 19Bit MT | N211: z hamulcem | O211: [L7□B035U] | W211: =VLOOKUP(E211,TabelaCen!$B$2:$C$988,2,FALSE) -> 1418.31 | X211: 992.817
A212: SERWOSILNIK | B212: APM-FF | C212: 180 F Flange | D212: APM-FFP55DMK2 | E212: 4716066600 | F212: Serwosilnik, APM-FF, 180mm, 26.26Nm, 2000obr/min, 5.5Kw, z hamulcem, Serial Enc. 19Bit MT, APM-FFP55DMK2, 4716066600 | G212: □180, 5.5Kw, 26.26Nm, Serial Enc.19 Bit MT, Brake, [L7□B050U] | H212: 2000 | I212: 400 | J212: 180mm | K212: 5.5Kw | L212: 26.26Nm | M212: Serial Enc. 19Bit MT | N212: z hamulcem | O212: [L7□B050U] | W212: =VLOOKUP(E212,TabelaCen!$B$2:$C$988,2,FALSE) -> 1626.37 | X212: 1138.459
A213: SERWOSILNIK | B213: APM-FF | C213: 180 F Flange | D213: APM-FFP75DMK2 | E213: 4716066700 | F213: Serwosilnik, APM-FF, 180mm, 35.81Nm, 2000obr/min, 7.5Kw, z hamulcem, Serial Enc. 19Bit MT, APM-FFP75DMK2, 4716066700 | G213: □180, 7.5Kw, 35.81Nm, Serial Enc.19 Bit MT, Brake, [L7□B075U] | H213: 2000 | I213: 400 | J213: 180mm | K213: 7.5Kw | L213: 35.81Nm | M213: Serial Enc. 19Bit MT | N213: z hamulcem | O213: [L7□B075U] | W213: =VLOOKUP(E213,TabelaCen!$B$2:$C$988,2,FALSE) -> 1912.71 | X213: 1338.897
A214: SERWOSILNIK | B214: APM-FF | C214: 180 F Flange | D214: APM-FFP20GMK | E214: 4716062900 | F214: Serwosilnik, APM-FF, 180mm, 11.46Nm, 1500obr/min, 1.8Kw, bez hamulca, Serial Enc. 19Bit MT, APM-FFP20GMK, 4716062900 | G214: □180, 1.8Kw, 11.46Nm, Serial Enc.19 Bit MT, [L7□B020U] | H214: 1500 | I214: 400 | J214: 180mm | K214: 1.8Kw | L214: 11.46Nm | M214: Serial Enc. 19Bit MT | N214: bez hamulca | O214: [L7□B020U] | W214: =VLOOKUP(E214,TabelaCen!$B$2:$C$988,2,FALSE) -> 933.18 | X214: 653.226
A215: SERWOSILNIK | B215: APM-FF | C215: 180 F Flange | D215: APM-FFP30GMK | E215: 4716063000 | F215: Serwosilnik, APM-FF, 180mm, 18.46Nm, 1500obr/min, 2.9Kw, bez hamulca, Serial Enc. 19Bit MT, APM-FFP30GMK, 4716063000 | G215: □180, 2.9Kw, 18.46Nm, Serial Enc.19 Bit MT, [L7□B035U] | H215: 1500 | I215: 400 | J215: 180mm | K215: 2.9Kw | L215: 18.46Nm | M215: Serial Enc. 19Bit MT | N215: bez hamulca | O215: [L7□B035U] | W215: =VLOOKUP(E215,TabelaCen!$B$2:$C$988,2,FALSE) -> 1081.5 | X215: 757.05
A216: SERWOSILNIK | B216: APM-FF | C216: 180 F Flange | D216: APM-FFP44GMK | E216: 4716063100 | F216: Serwosilnik, APM-FF, 180mm, 28.01Nm, 1500obr/min, 4.4Kw, bez hamulca, Serial Enc. 19Bit MT, APM-FFP44GMK, 4716063100 | G216: □180, 4.4Kw, 28.01Nm, Serial Enc.19 Bit MT, [L7□B050U] | H216: 1500 | I216: 400 | J216: 180mm | K216: 4.4Kw | L216: 28.01Nm | M216: Serial Enc. 19Bit MT | N216: bez hamulca | O216: [L7□B050U] | W216: =VLOOKUP(E216,TabelaCen!$B$2:$C$988,2,FALSE) -> 1290.59 | X216: 903.413
A217: SERWOSILNIK | B217: APM-FF | C217: 180 F Flange | D217: APM-FFP60GMK | E217: 4716063200 | F217: Serwosilnik, APM-FF, 180mm, 38.20Nm, 1500obr/min, 6Kw, bez hamulca, Serial Enc. 19Bit MT, APM-FFP60GMK, 4716063200 | G217: □180, 6Kw, 38.2Nm, Serial Enc.19 Bit MT, [L7□B075U] | H217: 1500 | I217: 400 | J217: 180mm | K217: 6Kw | L217: 38.20Nm | M217: Serial Enc. 19Bit MT | N217: bez hamulca | O217: [L7□B075U] | W217: =VLOOKUP(E217,TabelaCen!$B$2:$C$988,2,FALSE) -> 1578.99 | X217: 1105.293
A218: SERWOSILNIK | B218: APM-FF | C218: 180 F Flange | D218: APM-FFP75GMK | E218: 4716063300 | F218: Serwosilnik, APM-FF, 180mm, 47.75Nm, 1500obr/min, 7.5Kw, bez hamulca, Serial Enc. 19Bit MT, APM-FFP75GMK, 4716063300 | G218: □180, 7.5Kw, 47.75Nm, Serial Enc.19 Bit MT, [L7□B075U] | H218: 1500 | I218: 400 | J218: 180mm | K218: 7.5Kw | L218: 47.75Nm | M218: Serial Enc. 19Bit MT | N218: bez hamulca | O218: [L7□B075U] | W218: =VLOOKUP(E218,TabelaCen!$B$2:$C$988,2,FALSE) -> 1757.18 | X218: 1230.026
A219: SERWOSILNIK | B219: APM-FF | C219: 180 F Flange | D219: APM-FFP20GMK2 | E219: 4716067600 | F219: Serwosilnik, APM-FF, 180mm, 11.46Nm, 1500obr/min, 1.8Kw, z hamulcem, Serial Enc. 19Bit MT, APM-FFP20GMK2, 4716067600 | G219: □180, 1.8Kw, 11.46Nm, Serial Enc.19 Bit MT, Brake, [L7□B020U] | H219: 1500 | I219: 400 | J219: 180mm | K219: 1.8Kw | L219: 11.46Nm | M219: Serial Enc. 19Bit MT | N219: z hamulcem | O219: [L7□B020U] | W219: =VLOOKUP(E219,TabelaCen!$B$2:$C$988,2,FALSE) -> 1264.84 | X219: 885.388
A220: SERWOSILNIK | B220: APM-FF | C220: 180 F Flange | D220: APM-FFP30GMK2 | E220: 4716067700 | F220: Serwosilnik, APM-FF, 180mm, 18.46Nm, 1500obr/min, 2.9Kw, z hamulcem, Serial Enc. 19Bit MT, APM-FFP30GMK2, 4716067700 | G220: □180, 2.9Kw, 18.46Nm, Serial Enc.19 Bit MT, Brake, [L7□B035U] | H220: 1500 | I220: 400 | J220: 180mm | K220: 2.9Kw | L220: 18.46Nm | M220: Serial Enc. 19Bit MT | N220: z hamulcem | O220: [L7□B035U] | W220: =VLOOKUP(E220,TabelaCen!$B$2:$C$988,2,FALSE) -> 1418.31 | X220: 992.817
A221: SERWOSILNIK | B221: APM-FF | C221: 180 F Flange | D221: APM-FFP44GMK2 | E221: 4716067800 | F221: Serwosilnik, APM-FF, 180mm, 28.01Nm, 1500obr/min, 4.4Kw, z hamulcem, Serial Enc. 19Bit MT, APM-FFP44GMK2, 4716067800 | G221: □180, 4.4Kw, 28.01Nm, Serial Enc.19 Bit MT, Brake, [L7□B050U] | H221: 1500 | I221: 400 | J221: 180mm | K221: 4.4Kw | L221: 28.01Nm | M221: Serial Enc. 19Bit MT | N221: z hamulcem | O221: [L7□B050U] | W221: =VLOOKUP(E221,TabelaCen!$B$2:$C$988,2,FALSE) -> 1626.37 | X221: 1138.459
A222: SERWOSILNIK | B222: APM-FF | C222: 180 F Flange | D222: APM-FFP60GMK2 | E222: 4716067900 | F222: Serwosilnik, APM-FF, 180mm, 38.20Nm, 1500obr/min, 6Kw, z hamulcem, Serial Enc. 19Bit MT, APM-FFP60GMK2, 4716067900 | G222: □180, 6Kw, 38.2Nm, Serial Enc.19 Bit MT, Brake, [L7□B075U] | H222: 1500 | I222: 400 | J222: 180mm | K222: 6Kw | L222: 38.20Nm | M222: Serial Enc. 19Bit MT | N222: z hamulcem | O222: [L7□B075U] | W222: =VLOOKUP(E222,TabelaCen!$B$2:$C$988,2,FALSE) -> 1912.71 | X222: 1338.897
A223: SERWOSILNIK | B223: APM-FF | C223: 180 F Flange | D223: APM-FFP75GMK2 | E223: 4716068000 | F223: Serwosilnik, APM-FF, 180mm, 47.75Nm, 1500obr/min, 7.5Kw, z hamulcem, Serial Enc. 19Bit MT, APM-FFP75GMK2, 4716068000 | G223: □180, 7.5Kw, 47.75Nm, Serial Enc.19 Bit MT, Brake, [L7□B075U] | H223: 1500 | I223: 400 | J223: 180mm | K223: 7.5Kw | L223: 47.75Nm | M223: Serial Enc. 19Bit MT | N223: z hamulcem | O223: [L7□B075U] | W223: =VLOOKUP(E223,TabelaCen!$B$2:$C$988,2,FALSE) -> 
A224: SERWOSILNIK | B224: APM-FF | C224: 180 F Flange | D224: APM-FFP12MMK | E224: 4716064500 | F224: Serwosilnik, APM-FF, 180mm, 11.46Nm, 1000obr/min, 1.2Kw, bez hamulca, Serial Enc. 19Bit MT, APM-FFP12MMK, 4716064500 | G224: □180, 1.2Kw, 11.46Nm, Serial Enc.19 Bit MT, [L7□B020U] | H224: 1000 | I224: 400 | J224: 180mm | K224: 1.2Kw | L224: 11.46Nm | M224: Serial Enc. 19Bit MT | N224: bez hamulca | O224: [L7□B020U] | W224: =VLOOKUP(E224,TabelaCen!$B$2:$C$988,2,FALSE) -> 922.88 | X224: 646.016
A225: SERWOSILNIK | B225: APM-FF | C225: 180 F Flange | D225: APM-FFP20MMK | E225: 4716064600 | F225: Serwosilnik, APM-FF, 180mm, 19.10Nm, 1000obr/min, 2Kw, bez hamulca, Serial Enc. 19Bit MT, APM-FFP20MMK, 4716064600 | G225: □180, 2Kw, 19.1Nm, Serial Enc.19 Bit MT, [L7□B020U] | H225: 1000 | I225: 400 | J225: 180mm | K225: 2Kw | L225: 19.10Nm | M225: Serial Enc. 19Bit MT | N225: bez hamulca | O225: [L7□B020U] | W225: =VLOOKUP(E225,TabelaCen!$B$2:$C$988,2,FALSE) -> 1081.5 | X225: 757.05
A226: SERWOSILNIK | B226: APM-FF | C226: 180 F Flange | D226: APM-FFP30MMK | E226: 4716064700 | F226: Serwosilnik, APM-FF, 180mm, 28.65Nm, 1000obr/min, 3Kw, bez hamulca, Serial Enc. 19Bit MT, APM-FFP30MMK, 4716064700 | G226: □180, 3Kw, 28.65Nm, Serial Enc.19 Bit MT, [L7□B035U] | H226: 1000 | I226: 400 | J226: 180mm | K226: 3Kw | L226: 28.65Nm | M226: Serial Enc. 19Bit MT | N226: bez hamulca | O226: [L7□B035U] | W226: =VLOOKUP(E226,TabelaCen!$B$2:$C$988,2,FALSE) -> 1281.32 | X226: 896.924
A227: SERWOSILNIK | B227: APM-FF | C227: 180 F Flange | D227: APM-FFP44MMK | E227: 4716064800 | F227: Serwosilnik, APM-FF, 180mm, 42.02Nm, 1000obr/min, 4.4Kw, bez hamulca, Serial Enc. 19Bit MT, APM-FFP44MMK, 4716064800 | G227: □180, 4.4Kw, 42.02Nm, Serial Enc.19 Bit MT, [L7□B050U] | H227: 1000 | I227: 400 | J227: 180mm | K227: 4.4Kw | L227: 42.02Nm | M227: Serial Enc. 19Bit MT | N227: bez hamulca | O227: [L7□B050U] | W227: =VLOOKUP(E227,TabelaCen!$B$2:$C$988,2,FALSE) -> 1569.72 | X227: 1098.804
A228: SERWOSILNIK | B228: APM-FF | C228: 180 F Flange | D228: APM-FFP12MMK2 | E228: 4716068900 | F228: Serwosilnik, APM-FF, 180mm, 11.46Nm, 1000obr/min, 1.2Kw, z hamulcem, Serial Enc. 19Bit MT, APM-FFP12MMK2, 4716068900 | G228: □180, 1.2Kw, 11.46Nm, Serial Enc.19 Bit MT, Brake, [L7□B020U] | H228: 1000 | I228: 400 | J228: 180mm | K228: 1.2Kw | L228: 11.46Nm | M228: Serial Enc. 19Bit MT | N228: z hamulcem | O228: [L7□B020U] | W228: =VLOOKUP(E228,TabelaCen!$B$2:$C$988,2,FALSE) -> 1254.54 | X228: 878.178
A229: SERWOSILNIK | B229: APM-FF | C229: 180 F Flange | D229: APM-FFP20MMK2 | E229: 4716069000 | F229: Serwosilnik, APM-FF, 180mm, 19.10Nm, 1000obr/min, 2Kw, z hamulcem, Serial Enc. 19Bit MT, APM-FFP20MMK2, 4716069000 | G229: □180, 2Kw, 19.1Nm, Serial Enc.19 Bit MT, Brake, [L7□B020U] | H229: 1000 | I229: 400 | J229: 180mm | K229: 2Kw | L229: 19.10Nm | M229: Serial Enc. 19Bit MT | N229: z hamulcem | O229: [L7□B020U] | W229: =VLOOKUP(E229,TabelaCen!$B$2:$C$988,2,FALSE) -> 1418.31 | X229: 992.817
A230: SERWOSILNIK | B230: APM-FF | C230: 180 F Flange | D230: APM-FFP30MMK2 | E230: 4716069100 | F230: Serwosilnik, APM-FF, 180mm, 28.65Nm, 1000obr/min, 3Kw, z hamulcem, Serial Enc. 19Bit MT, APM-FFP30MMK2, 4716069100 | G230: □180, 3Kw, 28.65Nm, Serial Enc.19 Bit MT, Brake, [L7□B035U] | H230: 1000 | I230: 400 | J230: 180mm | K230: 3Kw | L230: 28.65Nm | M230: Serial Enc. 19Bit MT | N230: z hamulcem | O230: [L7□B035U] | W230: =VLOOKUP(E230,TabelaCen!$B$2:$C$988,2,FALSE) -> 1617.1 | X230: 1131.97
A231: SERWOSILNIK | B231: APM-FF | C231: 180 F Flange | D231: APM-FFP44MMK2 | E231: 4716069200 | F231: Serwosilnik, APM-FF, 180mm, 42.02Nm, 1000obr/min, 4.4Kw, z hamulcem, Serial Enc. 19Bit MT, APM-FFP44MMK2, 4716069200 | G231: □180, 4.4Kw, 42.02Nm, Serial Enc.19 Bit MT, Brake, [L7□B050U] | H231: 1000 | I231: 400 | J231: 180mm | K231: 4.4Kw | L231: 42.02Nm | M231: Serial Enc. 19Bit MT | N231: z hamulcem | O231: [L7□B050U] | W231: =VLOOKUP(E231,TabelaCen!$B$2:$C$988,2,FALSE) -> 1903.44 | X231: 1332.408
A232: SERWOSILNIK | B232: APM-FG | C232: 220 G Flange | D232: APM-FG22DMK | E232: 4716020400 | F232: Serwosilnik, APM-FG, 220mm, 10.50Nm, 2000obr/min, 2.2Kw, bez hamulca, Serial Enc. 19Bit MT, APM-FG22DMK, 4716020400 | G232: □220, 2.2Kw, 10.5Nm, Serial Enc.19 Bit MT, [L7□A020U] | H232: 2000 | I232: 200 | J232: 220mm | K232: 2.2Kw | L232: 10.50Nm | M232: Serial Enc. 19Bit MT | N232: bez hamulca | O232: [L7□A020U] | W232: =VLOOKUP(E232,TabelaCen!$B$2:$C$988,2,FALSE) -> 1079.44 | X232: 755.608
A233: SERWOSILNIK | B233: APM-FG | C233: 220 G Flange | D233: APM-FG35DMK | E233: 4716020500 | F233: Serwosilnik, APM-FG, 220mm, 16.71Nm, 2000obr/min, 3.5Kw, bez hamulca, Serial Enc. 19Bit MT, APM-FG35DMK, 4716020500 | G233: □220, 3.5Kw, 16.71Nm, Serial Enc.19 Bit MT, [L7□A035U] | H233: 2000 | I233: 200 | J233: 220mm | K233: 3.5Kw | L233: 16.71Nm | M233: Serial Enc. 19Bit MT | N233: bez hamulca | O233: [L7□A035U] | W233: =VLOOKUP(E233,TabelaCen!$B$2:$C$988,2,FALSE) -> 1205.1 | X233: 843.57
A234: SERWOSILNIK | B234: APM-FG | C234: 220 G Flange | D234: APM-FG55DMK | E234: 4716031300 | F234: Serwosilnik, APM-FG, 220mm, 26.25Nm, 2000obr/min, 5.5Kw, bez hamulca, Serial Enc. 19Bit MT, APM-FG55DMK, 4716031300 | G234: □220, 5.5Kw, 26.25Nm, Serial Enc.19 Bit MT, [L7□A050U] | H234: 2000 | I234: 200 | J234: 220mm | K234: 5.5Kw | L234: 26.25Nm | M234: Serial Enc. 19Bit MT | N234: bez hamulca | O234: [L7□A050U] | W234: =VLOOKUP(E234,TabelaCen!$B$2:$C$988,2,FALSE) -> 1435.82 | X234: 1005.074
A235: SERWOSILNIK | B235: APM-FG | C235: 220 G Flange | D235: APM-FG22DMK2 | E235: 4716024600 | F235: Serwosilnik, APM-FG, 220mm, 10.50Nm, 2000obr/min, 2.2Kw, z hamulcem, Serial Enc. 19Bit MT, APM-FG22DMK2, 4716024600 | G235: □220, 2.2Kw, 10.5Nm, Serial Enc.19 Bit MT, Brake, [L7□A020U] | H235: 2000 | I235: 200 | J235: 220mm | K235: 2.2Kw | L235: 10.50Nm | M235: Serial Enc. 19Bit MT | N235: z hamulcem | O235: [L7□A020U] | W235: =VLOOKUP(E235,TabelaCen!$B$2:$C$988,2,FALSE) -> 1606.8 | X235: 1124.76
A236: SERWOSILNIK | B236: APM-FG | C236: 220 G Flange | D236: APM-FG35DMK2 | E236: 4716024700 | F236: Serwosilnik, APM-FG, 220mm, 16.71Nm, 2000obr/min, 3.5Kw, z hamulcem, Serial Enc. 19Bit MT, APM-FG35DMK2, 4716024700 | G236: □220, 3.5Kw, 16.71Nm, Serial Enc.19 Bit MT, Brake, [L7□A035U] | H236: 2000 | I236: 200 | J236: 220mm | K236: 3.5Kw | L236: 16.71Nm | M236: Serial Enc. 19Bit MT | N236: z hamulcem | O236: [L7□A035U] | W236: =VLOOKUP(E236,TabelaCen!$B$2:$C$988,2,FALSE) -> 1739.67 | X236: 1217.769
A237: SERWOSILNIK | B237: APM-FG | C237: 220 G Flange | D237: APM-FG55DMK2 | E237: 4716029900 | F237: Serwosilnik, APM-FG, 220mm, 26.25Nm, 2000obr/min, 5.5Kw, z hamulcem, Serial Enc. 19Bit MT, APM-FG55DMK2, 4716029900 | G237: □220, 5.5Kw, 26.25Nm, Serial Enc.19 Bit MT, Brake, [L7□A050U] | H237: 2000 | I237: 200 | J237: 220mm | K237: 5.5Kw | L237: 26.25Nm | M237: Serial Enc. 19Bit MT | N237: z hamulcem | O237: [L7□A050U] | W237: =VLOOKUP(E237,TabelaCen!$B$2:$C$988,2,FALSE) -> 1974.51 | X237: 1382.157
A238: SERWOSILNIK | B238: APM-FG | C238: 220 G Flange | D238: APM-FG20GMK | E238: 4716021200 | F238: Serwosilnik, APM-FG, 220mm, 11.50Nm, 1500obr/min, 1.8Kw, bez hamulca, Serial Enc. 19Bit MT, APM-FG20GMK, 4716021200 | G238: □220, 1.8Kw, 11.5Nm, Serial Enc.19 Bit MT, [L7□A020U] | H238: 1500 | I238: 200 | J238: 220mm | K238: 1.8Kw | L238: 11.50Nm | M238: Serial Enc. 19Bit MT | N238: bez hamulca | O238: [L7□A020U] | W238: =VLOOKUP(E238,TabelaCen!$B$2:$C$988,2,FALSE) -> 1079.44 | X238: 755.608
A239: SERWOSILNIK | B239: APM-FG | C239: 220 G Flange | D239: APM-FG30GMK | E239: 4716021300 | F239: Serwosilnik, APM-FG, 220mm, 18.50Nm, 1500obr/min, 2.9Kw, bez hamulca, Serial Enc. 19Bit MT, APM-FG30GMK, 4716021300 | G239: □220, 2.9Kw, 18.5Nm, Serial Enc.19 Bit MT, [L7□A035U] | H239: 1500 | I239: 200 | J239: 220mm | K239: 2.9Kw | L239: 18.50Nm | M239: Serial Enc. 19Bit MT | N239: bez hamulca | O239: [L7□A035U] | W239: =VLOOKUP(E239,TabelaCen!$B$2:$C$988,2,FALSE) -> 1205.1 | X239: 843.57
A240: SERWOSILNIK | B240: APM-FG | C240: 220 G Flange | D240: APM-FG44GMK | E240: 4716031500 | F240: Serwosilnik, APM-FG, 220mm, 28.00Nm, 1500obr/min, 4.4Kw, bez hamulca, Serial Enc. 19Bit MT, APM-FG44GMK, 4716031500 | G240: □220, 4.4Kw, 28Nm, Serial Enc.19 Bit MT, [L7□A050U] | H240: 1500 | I240: 200 | J240: 220mm | K240: 4.4Kw | L240: 28.00Nm | M240: Serial Enc. 19Bit MT | N240: bez hamulca | O240: [L7□A050U] | W240: =VLOOKUP(E240,TabelaCen!$B$2:$C$988,2,FALSE) -> 1435.82 | X240: 1005.074
A241: SERWOSILNIK | B241: APM-FG | C241: 220 G Flange | D241: APM-FG20GMK2 | E241: 4716025400 | F241: Serwosilnik, APM-FG, 220mm, 11.50Nm, 1500obr/min, 1.8Kw, z hamulcem, Serial Enc. 19Bit MT, APM-FG20GMK2, 4716025400 | G241: □220, 1.8Kw, 11.5Nm, Serial Enc.19 Bit MT, Brake, [L7□A020U] | H241: 1500 | I241: 200 | J241: 220mm | K241: 1.8Kw | L241: 11.50Nm | M241: Serial Enc. 19Bit MT | N241: z hamulcem | O241: [L7□A020U] | W241: =VLOOKUP(E241,TabelaCen!$B$2:$C$988,2,FALSE) -> 1606.8 | X241: 1124.76
A242: SERWOSILNIK | B242: APM-FG | C242: 220 G Flange | D242: APM-FG30GMK2 | E242: 4716041400 | F242: Serwosilnik, APM-FG, 220mm, 18.50Nm, 1500obr/min, 2.9Kw, z hamulcem, Serial Enc. 19Bit MT, APM-FG30GMK2, 4716041400 | G242: □220, 2.9Kw, 18.5Nm, Serial Enc.19 Bit MT, Brake, [L7□A035U] | H242: 1500 | I242: 200 | J242: 220mm | K242: 2.9Kw | L242: 18.50Nm | M242: Serial Enc. 19Bit MT | N242: z hamulcem | O242: [L7□A035U] | W242: =VLOOKUP(E242,TabelaCen!$B$2:$C$988,2,FALSE) -> 1739.67 | X242: 1217.769
A243: SERWOSILNIK | B243: APM-FG | C243: 220 G Flange | D243: APM-FG44GMK2 | E243: 4716030100 | F243: Serwosilnik, APM-FG, 220mm, 28.00Nm, 1500obr/min, 4.4Kw, z hamulcem, Serial Enc. 19Bit MT, APM-FG44GMK2, 4716030100 | G243: □220, 4.4Kw, 28Nm, Serial Enc.19 Bit MT, Brake, [L7□A050U] | H243: 1500 | I243: 200 | J243: 220mm | K243: 4.4Kw | L243: 28.00Nm | M243: Serial Enc. 19Bit MT | N243: z hamulcem | O243: [L7□A050U] | W243: =VLOOKUP(E243,TabelaCen!$B$2:$C$988,2,FALSE) -> 1974.51 | X243: 1382.157
A244: SERWOSILNIK | B244: APM-FG | C244: 220 G Flange | D244: APM-FG12MMK | E244: 4716022100 | F244: Serwosilnik, APM-FG, 220mm, 11.50Nm, 1000obr/min, 1.2Kw, bez hamulca, Serial Enc. 19Bit MT, APM-FG12MMK, 4716022100 | G244: □220, 1.2Kw, 11.5Nm, Serial Enc.19 Bit MT, [L7□A020U] | H244: 1000 | I244: 200 | J244: 220mm | K244: 1.2Kw | L244: 11.50Nm | M244: Serial Enc. 19Bit MT | N244: bez hamulca | O244: [L7□A020U] | W244: =VLOOKUP(E244,TabelaCen!$B$2:$C$988,2,FALSE) -> 1079.44 | X244: 755.608
A245: SERWOSILNIK | B245: APM-FG | C245: 220 G Flange | D245: APM-FG20MMK | E245: 4716022200 | F245: Serwosilnik, APM-FG, 220mm, 19.10Nm, 1000obr/min, 2Kw, bez hamulca, Serial Enc. 19Bit MT, APM-FG20MMK, 4716022200 | G245: □220, 2Kw, 19.1Nm, Serial Enc.19 Bit MT, [L7□A020U] | H245: 1000 | I245: 200 | J245: 220mm | K245: 2Kw | L245: 19.10Nm | M245: Serial Enc. 19Bit MT | N245: bez hamulca | O245: [L7□A020U] | W245: =VLOOKUP(E245,TabelaCen!$B$2:$C$988,2,FALSE) -> 1211.28 | X245: 847.896
A246: SERWOSILNIK | B246: APM-FG | C246: 220 G Flange | D246: APM-FG30MMK | E246: 4716022300 | F246: Serwosilnik, APM-FG, 220mm, 28.60Nm, 1000obr/min, 3Kw, bez hamulca, Serial Enc. 19Bit MT, APM-FG30MMK, 4716022300 | G246: □220, 3Kw, 28.6Nm, Serial Enc.19 Bit MT, [L7□A035U] | H246: 1000 | I246: 200 | J246: 220mm | K246: 3Kw | L246: 28.60Nm | M246: Serial Enc. 19Bit MT | N246: bez hamulca | O246: [L7□A035U] | W246: =VLOOKUP(E246,TabelaCen!$B$2:$C$988,2,FALSE) -> 1388.44 | X246: 971.908
A247: SERWOSILNIK | B247: APM-FG | C247: 220 G Flange | D247: APM-FG44MMK | E247: 4716031700 | F247: Serwosilnik, APM-FG, 220mm, 42.00Nm, 1000obr/min, 4.4Kw, bez hamulca, Serial Enc. 19Bit MT, APM-FG44MMK, 4716031700 | G247: □220, 4.4Kw, 42Nm, Serial Enc.19 Bit MT, [L7□A050U] | H247: 1000 | I247: 200 | J247: 220mm | K247: 4.4Kw | L247: 42.00Nm | M247: Serial Enc. 19Bit MT | N247: bez hamulca | O247: [L7□A050U] | W247: =VLOOKUP(E247,TabelaCen!$B$2:$C$988,2,FALSE) -> 1607.83 | X247: 1125.481
A248: SERWOSILNIK | B248: APM-FG | C248: 220 G Flange | D248: APM-FG12MMK2 | E248: 4716026200 | F248: Serwosilnik, APM-FG, 220mm, 11.50Nm, 1000obr/min, 1.2Kw, z hamulcem, Serial Enc. 19Bit MT, APM-FG12MMK2, 4716026200 | G248: □220, 1.2Kw, 11.5Nm, Serial Enc.19 Bit MT, Brake, [L7□A020U] | H248: 1000 | I248: 200 | J248: 220mm | K248: 1.2Kw | L248: 11.50Nm | M248: Serial Enc. 19Bit MT | N248: z hamulcem | O248: [L7□A020U] | W248: =VLOOKUP(E248,TabelaCen!$B$2:$C$988,2,FALSE) -> 1606.8 | X248: 1124.76
A249: SERWOSILNIK | B249: APM-FG | C249: 220 G Flange | D249: APM-FG20MMK2 | E249: 4716026300 | F249: Serwosilnik, APM-FG, 220mm, 19.10Nm, 1000obr/min, 2Kw, z hamulcem, Serial Enc. 19Bit MT, APM-FG20MMK2, 4716026300 | G249: □220, 2Kw, 19.1Nm, Serial Enc.19 Bit MT, Brake, [L7□A020U] | H249: 1000 | I249: 200 | J249: 220mm | K249: 2Kw | L249: 19.10Nm | M249: Serial Enc. 19Bit MT | N249: z hamulcem | O249: [L7□A020U] | W249: =VLOOKUP(E249,TabelaCen!$B$2:$C$988,2,FALSE) -> 1744.82 | X249: 1221.374
A250: SERWOSILNIK | B250: APM-FG | C250: 220 G Flange | D250: APM-FG30MMK2 | E250: 4716026400 | F250: Serwosilnik, APM-FG, 220mm, 28.60Nm, 1000obr/min, 3Kw, z hamulcem, Serial Enc. 19Bit MT, APM-FG30MMK2, 4716026400 | G250: □220, 3Kw, 28.6Nm, Serial Enc.19 Bit MT, Brake, [L7□A035U] | H250: 1000 | I250: 200 | J250: 220mm | K250: 3Kw | L250: 28.60Nm | M250: Serial Enc. 19Bit MT | N250: z hamulcem | O250: [L7□A035U] | W250: =VLOOKUP(E250,TabelaCen!$B$2:$C$988,2,FALSE) -> 1927.13 | X250: 1348.991
A251: SERWOSILNIK | B251: APM-FG | C251: 220 G Flange | D251: APM-FG44MMK2 | E251: 4716030300 | F251: =CONCATENATE("Serwosilnik",", ",B251,", ",J251,", ",L251,", ",H251,"obr/min, ",K251,", ",N251,", ",M251,", ",D251,", ",E251) -> Serwosilnik, APM-FG, 220mm, 42.00Nm, 1000obr/min, 4.4Kw, z hamulcem, Serial Enc. 19Bit MT, APM-FG44MMK2, 4716030300 | G251: □220, 4.4Kw, 42Nm, Serial Enc.19 Bit MT, Brake, [L7□A050U] | H251: 1000 | I251: 200 | J251: 220mm | K251: 4.4Kw | L251: 42.00Nm | M251: Serial Enc. 19Bit MT | N251: z hamulcem | O251: [L7□A050U] | W251: =VLOOKUP(E251,TabelaCen!$B$2:$C$988,2,FALSE) -> 2147.55 | X251: =W251-(W251*$X$55) -> 1503.285
A252: SERWOSILNIK | B252: APM-FG | C252: 220 G Flange | D252: APM-FGP22DMK | E252: 4716062000 | F252: Serwosilnik, APM-FG, 220mm, 10.50Nm, 2000obr/min, 2.2Kw, bez hamulca, Serial Enc. 19Bit MT, APM-FGP22DMK, 4716062000 | G252: □220, 2.2Kw, 10.5Nm, Serial Enc.19 Bit MT, [L7□B020U] | H252: 2000 | I252: 400 | J252: 220mm | K252: 2.2Kw | L252: 10.50Nm | M252: Serial Enc. 19Bit MT | N252: bez hamulca | O252: [L7□B020U] | W252: =VLOOKUP(E252,TabelaCen!$B$2:$C$988,2,FALSE) -> 1106.22 | X252: 774.354
A253: SERWOSILNIK | B253: APM-FG | C253: 220 G Flange | D253: APM-FGP35DMK | E253: 4716062100 | F253: Serwosilnik, APM-FG, 220mm, 16.71Nm, 2000obr/min, 3.5Kw, bez hamulca, Serial Enc. 19Bit MT, APM-FGP35DMK, 4716062100 | G253: □220, 3.5Kw, 16.71Nm, Serial Enc.19 Bit MT, [L7□B035U] | H253: 2000 | I253: 400 | J253: 220mm | K253: 3.5Kw | L253: 16.71Nm | M253: Serial Enc. 19Bit MT | N253: bez hamulca | O253: [L7□B035U] | W253: =VLOOKUP(E253,TabelaCen!$B$2:$C$988,2,FALSE) -> 1241.15 | X253: 868.805
A254: SERWOSILNIK | B254: APM-FG | C254: 220 G Flange | D254: APM-FGP55DMK | E254: 4716062200 | F254: Serwosilnik, APM-FG, 220mm, 26.26Nm, 2000obr/min, 5.5Kw, bez hamulca, Serial Enc. 19Bit MT, APM-FGP55DMK, 4716062200 | G254: □220, 5.5Kw, 26.26Nm, Serial Enc.19 Bit MT, [L7□B050U] | H254: 2000 | I254: 400 | J254: 220mm | K254: 5.5Kw | L254: 26.26Nm | M254: Serial Enc. 19Bit MT | N254: bez hamulca | O254: [L7□B050U] | W254: =VLOOKUP(E254,TabelaCen!$B$2:$C$988,2,FALSE) -> 1470.84 | X254: 1029.588
... 246 more rows

Sheet TabelaCen
A1: Part Number | B1: ERP CODE | C1: Price EUR | E1: STARA CENA
A2: L7CA001U | B2: 4715016200 | C2: 345.05 | E2: 335
A3: L7CA002U | B3: 4715016300 | C3: 345.05 | E3: 335
A4: L7CA004U | B4: 4715016400 | C4: 349.17 | E4: 339
A5: L7CA008U | B5: 4715016500 | C5: 400.67 | E5: 389
A6: L7CA010U | B6: 4715016600 | C6: 413.03 | E6: 401
A7: L7SA001A | B7: 4715000100 | C7: 472.77 | E7: 459
A8: L7SA002A | B8: 4715000200 | C8: 475.86 | E8: 462
A9: L7SA004A | B9: 4715000300 | C9: 483.07 | E9: 469
A10: L7SA008A | B10: 4715000400 | C10: 603.58 | E10: 586
A11: L7SA010A | B11: 4715000500 | C11: 609.76 | E11: 592
A12: L7SA020A | B12: 4715000600 | C12: 839.45 | E12: 815
A13: L7SA035A | B13: 4715000700 | C13: 860.05 | E13: 835
A14: L7SA050A | B14: 4715002300 | C14: 1469.81 | E14: 1427
A15: L7SA001B | B15: 4715000800 | C15: 475.86 | E15: 462
A16: L7SA002B | B16: 4715000900 | C16: 479.98 | E16: 466
A17: L7SA004B | B17: 4715001000 | C17: 486.16 | E17: 472
A18: L7SA008B | B18: 4715001100 | C18: 607.7 | E18: 590
A19: L7SA010B | B19: 4715001200 | C19: 613.88 | E19: 596
A20: L7SA020B | B20: 4715001300 | C20: 842.54 | E20: 818
A21: L7SA035B | B21: 4715001400 | C21: 864.17 | E21: 839
A22: L7SA050B | B22: 4715002400 | C22: 1472.9 | E22: 1430
A23: L7NHA001U | B23: 4715004300 | C23: 539.72 | E23: 524
A24: L7NHA002U | B24: 4715004400 | C24: 542.81 | E24: 527
A25: L7NHA004U | B25: 4715004500 | C25: 550.02 | E25: 534
A26: L7NHA008U | B26: 4715004600 | C26: 659.2 | E26: 640
A27: L7NHA010U | B27: 4715002800 | C27: 663.32 | E27: 644
A28: L7NHA020U | B28: 4715004700 | C28: 894.04 | E28: 868
A29: L7NHA035U | B29: 4715004800 | C29: 915.67 | E29: 889
A30: L7NHA050U | B30: 4715008500 | C30: 1528.52 | E30: 1484
A31: L7NHA075U | B31: 4715009200 | C31: 2221.71 | E31: 2157
A32: L7NHA150U | B32: 4715009300 | C32: 3245.53 | E32: 3151
A33: L7NHFA010U | B33: 4715012400 | C33: 886.83 | E33: 861
A34: L7NHFA035U | B34: 4715012500 | C34: 1428.61 | E34: 1387
A35: L7NHFA050U | B35: 4715012600 | C35: 1575.9 | E35: 1530
A36: L7NHFA075U | B36: 4715012700 | C36: 2274.24 | E36: 2208
A37: L7PA001U | B37: 4715005500 | C37: 497.49 | E37: 483
A38: L7PA002U | B38: 4715005600 | C38: 501.61 | E38: 487
A39: L7PA004U | B39: 4715005700 | C39: 508.82 | E39: 494
A40: L7PA008U | B40: 4715005800 | C40: 616.97 | E40: 599
A41: L7PA010U | B41: 4715005900 | C41: 622.12 | E41: 604
A42: L7PA020U | B42: 4715006000 | C42: 899.19 | E42: 873
A43: L7PA035U | B43: 4715006100 | C43: 874.47 | E43: 849
A44: L7PA050U | B44: 4715006200 | C44: 1487.32 | E44: 1444
A45: L7PA075U | B45: 4715006300 | C45: 2180.51 | E45: 2117
A46: L7PA150U | B46: 4715006400 | C46: 3200.21 | E46: 3107
A47: L7SB010B | B47: 4715003800 | C47: 660.23 | E47: 641
A48: L7SB020B | B48: 4715003900 | C48: 894.04 | E48: 868
A49: L7SB035B | B49: 4715004000 | C49: 909.49 | E49: 883
A50: L7SB050B | B50: 4715004100 | C50: 1455.39 | E50: 1413
A51: L7SB075B | B51: 4715004200 | C51: 1674.78 | E51: 1626
A52: L7SB150B | B52: 4715002600 | C52: 2839.71 | E52: 2757
A53: L7NHB010U | B53: 4715004900 | C53: 715.85 | E53: 695
A54: L7NHB020U | B54: 4715005000 | C54: 949.66 | E54: 922
A55: L7NHB035U | B55: 4715005100 | C55: 965.11 | E55: 937
A56: L7NHB050U | B56: 4715005200 | C56: 1508.95 | E56: 1465
A57: L7NHB075U | B57: 4715005300 | C57: 1729.37 | E57: 1679
A58: L7NHB150U | B58: 4715005400 | C58: 2975.67 | E58: 2889
A59: L7PB010U | B59: 4715008600 | C59: 672.59 | E59: 653
A60: L7PB020U | B60: 4715008700 | C60: 907.43 | E60: 881
A61: L7PB035U | B61: 4715008800 | C61: 921.85 | E61: 895
A62: L7PB050U | B62: 4715008900 | C62: 1453.33 | E62: 1411
A63: L7PB075U | B63: 4715009000 | C63: 1686.11 | E63: 1637
A64: L7PB150U | B64: 4715009100 | C64: 2848.98 | E64: 2766
A65: APM-SAR3ACN | B65: 4716004300 | C65: 378.01 | E65: 367
A66: APM-SAR5ACN | B66: 4716004400 | C66: 391.4 | E66: 380
A67: APM-SA01ACN | B67: 4716004500 | C67: 416.12 | E67: 404
A68: APM-SA015ACN | B68: 4716004600 | C68: 443.93 | E68: 431
A69: APM-SB01ADK | B69: 4716004700 | C69: 341.96 | E69: 332
A70: APM-SB02ADK | B70: 4716004800 | C70: 364.62 | E70: 354
A71: APM-SB04ADK | B71: 4716004900 | C71: 400.67 | E71: 389
A72: APM-SC04ADK | B72: 4716005000 | C72: 409.94 | E72: 398
A73: APM-SC06ADK | B73: 4716005100 | C73: 436.72 | E73: 424
A74: APM-SC08ADK | B74: 4716005200 | C74: 505.73 | E74: 491
A75: APM-SC10ADK | B75: 4716005300 | C75: 552.08 | E75: 536
A76: APM-SC03DDK | B76: 4716005900 | C76: 409.94 | E76: 398
A77: APM-SC05DDK | B77: 4716006000 | C77: 437.75 | E77: 425
A78: APM-SC06DDK | B78: 4716006100 | C78: 506.76 | E78: 492
A79: APM-SC07DDK | B79: 4716006200 | C79: 552.08 | E79: 536
A80: APM-SA01ACN-8 | B80: 4716098000 | C80: 416.12 | E80: 404
A81: APM-SA015ACN-8 | B81: 4716098100 | C81: 447.02 | E81: 434
A82: APM-SB02ADK-9 | B82: 4716098200 | C82: 364.62 | E82: 354
A83: APM-SB03ADK-9 | B83: 4716098300 | C83: 398.61 | E83: 387
A84: APM-SC05ADK-9 | B84: 4716098400 | C84: 439.81 | E84: 427
A85: APM-SC06ADK-52 | B85: 4716098500 | C85: 437.75 | E85: 425
A86: APM-SC08ADK-52 | B86: 4716098600 | C86: 505.73 | E86: 491
A87: APM-HB01AAH | B87: 4716008900 | C87: 868.29 | E87: 843
A88: APM-HB02AAH | B88: 4716009000 | C88: 895.07 | E88: 869
A89: APM-HB04AAH | B89: 4716009100 | C89: 933.18 | E89: 906
A90: APM-HE09ACH | B90: 4716009200 | C90: 1263.81 | E90: 1227
A91: APM-HE15ACH | B91: 4716009300 | C91: 1381.23 | E91: 1341
A92: APM-HE30ACH | B92: 4716097200 | C92: 1614.01 | E92: 1567
A93: APM-SAR3ACN2 | B93: 4716013600 | C93: 539.72 | E93: 524
A94: APM-SAR5ACN2 | B94: 4716013700 | C94: 550.02 | E94: 534
A95: APM-SA01ACN2 | B95: 4716013800 | C95: 577.83 | E95: 561
A96: APM-SB01ADK2 | B96: 4716014000 | C96: 550.02 | E96: 534
A97: APM-SB02ADK2 | B97: 4716014100 | C97: 572.68 | E97: 556
A98: APM-SB04ADK2 | B98: 4716014200 | C98: 609.76 | E98: 592
A99: APM-SC04ADK2 | B99: 4716014300 | C99: 628.3 | E99: 610
A100: APM-SC06ADK2 | B100: 4716014400 | C100: 657.14 | E100: 638
A101: APM-SC08ADK2 | B101: 4716014500 | C101: 725.12 | E101: 704
A102: APM-SC10ADK2 | B102: 4716014600 | C102: 771.47 | E102: 749
A103: APM-SC03DDK2 | B103: 4716015200 | C103: 629.33 | E103: 611
A104: APM-SC05DDK2 | B104: 4716015300 | C104: 659.2 | E104: 640
A105: APM-SC06DDK2 | B105: 4716015400 | C105: 726.15 | E105: 705
A106: APM-SC07DDK2 | B106: 4716015500 | C106: 771.47 | E106: 749
A107: APM-SA01ACN2-8 | B107: 4716105300 | C107: 576.8 | E107: 560
A108: APM-SB02ADK2-9 | B108: 4716105500 | C108: 572.68 | E108: 556
A109: APM-SB03ADK2-9 | B109: 4716105600 | C109: 608.73 | E109: 591
A110: APM-SC05ADK2-9 | B110: 4716105700 | C110: 661.26 | E110: 642
A111: APM-SC06ADK2-52 | B111: 4716105800 | C111: 658.17 | E111: 639
A112: APM-SC08ADK2-52 | B112: 4716105900 | C112: 725.12 | E112: 704
A113: APMC-FALR5AM8N | B113: 4716097400 | C113: 347.11 | E113: 337
A114: APMC-FAL01AM8N | B114: 4716089800 | C114: 356.38 | E114: 346
A115: APMC-FAL015AM8N | B115: 4716097500 | C115: 387.28 | E115: 376
A116: APMC-FBL01AMK | B116: 4716080000 | C116: 310.03 | E116: 301
A117: APMC-FBL02AMK | B117: 4716080100 | C117: 332.69 | E117: 323
A118: APMC-FBL04AMK | B118: 4716080200 | C118: 346.08 | E118: 336
A119: APMC-FCL04AMK | B119: 4716080300 | C119: 348.14 | E119: 338
A120: APMC-FCL06AMK | B120: 4716080400 | C120: 383.16 | E120: 372
A121: APMC-FCL08AMK | B121: 4716080500 | C121: 429.51 | E121: 417
A122: APMC-FCL10AMK | B122: 4716080600 | C122: 470.71 | E122: 457
A123: APMC-FCL03DMK | B123: 4716080700 | C123: 348.14 | E123: 338
A124: APMC-FCL05DMK | B124: 4716080800 | C124: 388.31 | E124: 377
A125: APMC-FCL06DMK | B125: 4716080900 | C125: 433.63 | E125: 421
A126: APMC-FCL07DMK | B126: 4716081000 | C126: 472.77 | E126: 459
A127: APM-FE09AMK | B127: 4716019300 | C127: 629.33 | E127: 611
A128: APM-FE15AMK | B128: 4716019400 | C128: 695.25 | E128: 675
A129: APM-FE22AMK | B129: 4716019500 | C129: 757.05 | E129: 735
A130: APM-FE30AMK | B130: 4716019600 | C130: 777.65 | E130: 755
A131: APM-FE06DMK | B131: 4716019800 | C131: 631.39 | E131: 613
A132: APM-FE11DMK | B132: 4716019900 | C132: 695.25 | E132: 675
A133: APM-FE16DMK | B133: 4716020000 | C133: 744.69 | E133: 723
A134: APM-FE22DMK | B134: 4716020100 | C134: 776.62 | E134: 754
A135: APM-FE05GMK | B135: 4716020600 | C135: 631.39 | E135: 613
A136: APM-FE09GMK | B136: 4716020700 | C136: 695.25 | E136: 675
A137: APM-FE13GMK | B137: 4716020800 | C137: 744.69 | E137: 723
A138: APM-FE17GMK | B138: 4716020900 | C138: 776.62 | E138: 754
A139: APM-FE03MMK | B139: 4716021400 | C139: 631.39 | E139: 613
A140: APM-FE06MMK | B140: 4716021500 | C140: 696.28 | E140: 676
A141: APM-FE09MMK | B141: 4716021600 | C141: 744.69 | E141: 723
A142: APM-FE12MMK | B142: 4716021700 | C142: 781.77 | E142: 759
A143: APM-FF30AMK | B143: 4716019700 | C143: 913.61 | E143: 887
A144: APM-FF50AMK | B144: 4716031100 | C144: 1078.41 | E144: 1047
A145: APM-FF22DMK | B145: 4716020200 | C145: 932.15 | E145: 905
A146: APM-FF35DMK | B146: 4716020300 | C146: 1082.53 | E146: 1051
A147: APM-FF55DMK | B147: 4716031200 | C147: 1295.74 | E147: 1258
A148: APM-FF75DMK | B148: 4716086900 | C148: 1574.87 | E148: 1529
A149: APM-FF20GMK | B149: 4716021000 | C149: 920.82 | E149: 894
A150: APM-FF30GMK | B150: 4716021100 | C150: 1058.84 | E150: 1028
A151: APM-FF44GMK | B151: 4716031400 | C151: 1295.74 | E151: 1258
A152: APM-FF60GMK | B152: 4716087200 | C152: 1574.87 | E152: 1529
A153: APM-FF75GMK | B153: 4716087300 | C153: 1730.4 | E153: 1680
A154: APM-FF12MMK | B154: 4716021800 | C154: 919.79 | E154: 893
A155: APM-FF20MMK | B155: 4716021900 | C155: 1073.26 | E155: 1042
A156: APM-FF30MMK | B156: 4716022000 | C156: 1290.59 | E156: 1253
A157: APM-FF44MMK | B157: 4716031600 | C157: 1534.7 | E157: 1490
A158: APM-FG22DMK | B158: 4716020400 | C158: 1079.44 | E158: 1048
A159: APM-FG35DMK | B159: 4716020500 | C159: 1205.1 | E159: 1170
A160: APM-FG55DMK | B160: 4716031300 | C160: 1435.82 | E160: 1394
A161: APM-FG75DMK | B161: 4716087000 | C161: 1610.92 | E161: 1564
A162: APM-FG110DMK | B162: 4716087100 | C162: 2358.7 | E162: 2290
A163: APM-FG20GMK | B163: 4716021200 | C163: 1079.44 | E163: 1048
A164: APM-FG30GMK | B164: 4716021300 | C164: 1205.1 | E164: 1170
A165: APM-FG44GMK | B165: 4716031500 | C165: 1435.82 | E165: 1394
A166: APM-FG60GMK | B166: 4716087400 | C166: 1610.92 | E166: 1564
A167: APM-FG85GMK | B167: 4716087500 | C167: 2353.55 | E167: 2285
A168: APM-FG110GMK | B168: 4716087600 | C168: 2303.08 | E168: 2236
A169: APM-FG150GMK | B169: 4716087700 | C169: 3338.23 | E169: 3241
A170: APM-FG12MMK | B170: 4716022100 | C170: 1079.44 | E170: 1048
A171: APM-FG20MMK | B171: 4716022200 | C171: 1211.28 | E171: 1176
A172: APM-FG30MMK | B172: 4716022300 | C172: 1388.44 | E172: 1348
A173: APM-FG44MMK | B173: 4716031700 | C173: 1607.83 | E173: 1561
A174: APM-FG60MMK | B174: 4716096300 | C174: 2352.52 | E174: 2284
A175: APMC-FAL01AM8N-8 | B175: 4716097600 | C175: 356.38 | E175: 346
A176: APMC-FBL01AMK-8 | B176: 4716097700 | C176: 310.03 | E176: 301
A177: APMC-FBL02AMK-8 | B177: 4716097800 | C177: 332.69 | E177: 323
A178: APMC-FBL03AMK8 | B178: 4716097900 | C178: 346.08 | E178: 336
A179: APMC-FALR5AM8N2 | B179: 4716103200 | C179: 543.84 | E179: 528
A180: APMC-FAL01AM8N2 | B180: 4716103300 | C180: 525.3 | E180: 510
A181: APMC-FBL01AMK2 | B181: 4716081600 | C181: 531.48 | E181: 516
A182: APMC-FBL02AMK2 | B182: 4716081700 | C182: 557.23 | E182: 541
A183: APMC-FBL04AMK2 | B183: 4716081800 | C183: 567.53 | E183: 551
A184: APMC-FCL04AMK2 | B184: 4716081900 | C184: 566.5 | E184: 550
A185: APMC-FCL06AMK2 | B185: 4716082000 | C185: 607.7 | E185: 590
A186: APMC-FCL08AMK2 | B186: 4716082100 | C186: 653.02 | E186: 634
A187: APMC-FCL10AMK2 | B187: 4716082200 | C187: 691.13 | E187: 671
A188: APMC-FCL03DMK2 | B188: 4716082300 | C188: 566.5 | E188: 550
A189: APMC-FCL05DMK2 | B189: 4716082400 | C189: 688.04 | E189: 668
A190: APMC-FCL06DMK2 | B190: 4716082500 | C190: 654.05 | E190: 635
A191: APMC-FCL07DMK2 | B191: 4716082600 | C191: 690.1 | E191: 670
A192: APM-FE09AMK2 | B192: 4716023500 | C192: 848.72 | E192: 824
A193: APM-FE15AMK2 | B193: 4716023600 | C193: 914.64 | E193: 888
A194: APM-FE22AMK2 | B194: 4716023700 | C194: 976.44 | E194: 948
A195: APM-FE30AMK2 | B195: 4716023800 | C195: 996.01 | E195: 967
A196: APM-FE06DMK2 | B196: 4716024000 | C196: 851.81 | E196: 827
A197: APM-FE11DMK2 | B197: 4716024100 | C197: 915.67 | E197: 889
A198: APM-FE16DMK2 | B198: 4716024200 | C198: 964.08 | E198: 936
A199: APM-FE22DMK2 | B199: 4716024300 | C199: 994.98 | E199: 966
A200: APM-FE05GMK2 | B200: 4716024800 | C200: 851.81 | E200: 827
... 788 more rows
